Workbook

Sheet Obsah
F2: 100
D4: B9 Tematické tabulky
D5: Zdroje dat jsou uvedeny v zápatí jednotlivých tabulek
D7: Text | F7: Obsah
E8: Zdravotně postižené a znevýhodněné děti a žáci v regionálním školství
D9: Tabulka 1 | F9: ='B9.1.1'!H4&" "&'B9.1.1'!D5 -> Individuální integrace do běžných tříd mateřských škol – zdravotně postižené a znevýhodněné děti ve školním roce 2008/09 až 2018/19 – podle druhu postižení
D11: Tabulka 2 | F11: ='B9.1.2'!H4&" "&'B9.1.2'!D5 -> Speciální třídy mateřských škol – zdravotně postižené a znevýhodněné děti ve školním roce 2008/09 až 2018/19 – podle druhu postižení
D13: Tabulka 3 | F13: ='B9.1.3'!H4&" "&'B9.1.3'!D5 -> Individuální integrace do běžných tříd základních škol – zdravotně postižení a znevýhodnění žáci ve školním roce 2008/09 až 2018/19 – podle druhu postižení
D15: Tabulka 4 | F15: ='B9.1.4'!H4&" "&'B9.1.4'!D5 -> Speciální třídy základních škol – zdravotně postižení a znevýhodnění žáci ve školním roce 2008/09 až 2018/19 – podle druhu postižení
D17: Tabulka 5 | F17: ='B9.1.5'!H4&" "&'B9.1.5'!D5 -> Individuální integrace do běžných tříd středních škol – zdravotně postižení a znevýhodnění žáci ve školním roce 2008/09 až 2018/19 – podle druhu postižení
D19: Tabulka 6 | F19: ='B9.1.6'!H4&" "&'B9.1.6'!D5 -> Speciální třídy středních škol – zdravotně postižení a znevýhodnění žáci ve školním roce 2008/09 až 2018/19 – podle druhu postižení
E21: Žáci v regionálním školství učící se cizí jazyky
D22: Tabulka 7 | F22: ='B9.2.1'!H4&" "&'B9.2.1'!D5 -> Základní školy – školy, žáci učící se cizí jazyky ve školním roce 2008/09 až 2018/19
D24: Tabulka 8 | F24: ='B9.2.2'!H4&" "&'B9.2.2'!D5 -> Střední školy, denní forma vzdělávání – školy, žáci učící se cizí jazyky ve školním roce 2008/09 až 2018/19
D26: Tabulka 9 | F26: ='B9.2.3'!H4&" "&'B9.2.3'!D5 -> Konzervatoře, denní forma vzdělávání – žáci učící se cizí jazyky ve školním roce 2008/09 až 2018/19
D28: Tabulka 10 | F28: ='B9.2.4'!H4&" "&'B9.2.4'!D5 -> Vyšší odborné školy, denní forma vzdělávání – studenti učící se cizí jazyky ve školním roce 2008/09 až 2018/19
E29: Učitelé v regionálním školství učící cizí jazyky (pouze do školního roku 2014/15)
D30: Tabulka 11 | F30: ='B9.3.1'!H4&" "&'B9.3.1'!D5 -> Základní školy – učitelé cizích jazyků (přepočtení na plně zaměstnané) ve školním roce 2007/08 až 2014/15 – podle jazyka
D32: Tabulka 12 | F32: ='B9.3.2'!H4&" "&'B9.3.2'!D5 -> Střední školy – učitelé cizích jazyků (přepočtení na plně zaměstnané) ve školním roce 2007/08 až 2014/15 – podle jazyka
D34: Tabulka 13 | F34: ='B9.3.3'!H4&" "&'B9.3.3'!D5 -> Konzervatoře – učitelé cizích jazyků (přepočtení na plně zaměstnané) ve školním roce 2007/08 až 2014/15 – podle jazyka
D36: Tabulka 14 | F36: ='B9.3.4'!$H$4&" "&'B9.3.4'!$D$5 -> Vyšší odborné školy – učitelé cizích jazyků (přepočtení na plně zaměstnané) ve školním roce 2007/08 až 2014/15 – podle jazyka
E37: Obrazová příloha
D38: Graf 1 | F38: ='GB1'!$G$4&" "&'GB1'!$D$5 -> Zdravotně postižené děti – podíl na celkovém počtu dětí v mateřských školách ve školním roce 2008/09 až 2018/19
D40: Graf 2 | F40: ='GB2'!$G$4&" "&'GB2'!$D$5 -> Zdravotně postižení žáci – podíl na celkovém počtu žáků v základních školách ve školním roce 2008/09 až 2018/19
D42: Graf 3 | F42: ='GB3'!$G$4&" "&'GB3'!$D$5 -> Zdravotně postižení žáci – podíl na celkovém počtu žáků ve středních školách denní formy vzdělávání ve školním roce 2008/09 až 2018/19
D44: Graf 4 | F44: ='GB4'!$G$4&" "&'GB4'!$D$5 -> Základní školy – žáci učící se cizí jazyky ve školním roce 2008/09 až 2018/19
D46: Graf 5 | F46: ='GB5'!$G$4&" "&'GB5'!$D$5 -> Střední školy, denní forma vzdělávání – žáci učící se cizí jazyky ve školním roce 2008/09 až 2018/19
D48: Graf 6 | F48: ='GB6'!$G$4&" "&'GB6'!$D$5 -> VOŠ, denní forma vzdělávání – studenti učící se cizí jazyky ve školním roce 2008/09 až 2018/19

Sheet B9.1.1
D4: Tab. B9.1.1: | H4: Individuální integrace do běžných tříd mateřských škol – zdravotně
B5: 0 | D5: postižené a znevýhodněné děti ve školním roce 2008/09 až 2018/19 – podle druhu postižení
D7: Druh postižení | J7: 2003/04 | K7: 2004/05 | L7: 2005/06 | M7: 2006/07 | N7: 2007/08 | O7: 2008/09 | P7: 2009/10 | Q7: 2010/11 | R7: 2011/12 | S7: 2012/13 | T7: 2013/14 | U7: 2014/15 | V7: 2015/16 | W7: 2016/17 | X7: 2017/18 | Y7: 2018/19
E12: Individuálně integrované děti celkem | J12: 2001 | K12: 1919 | L12: 1557 | M12: 1591 | N12: 1683 | O12: 1693 | P12: 1780 | Q12: 1911 | R12: 2032 | S12: 2156 | T12: 2299 | U12: 2484 | V12: 2748 | W12: 3029 | X12: 3774 | Y12: 4367
E13: v tom | G13: mentálně postižené | J13: 247 | K13: 221 | L13: 205 | M13: 190 | N13: 194 | O13: 198 | P13: 194 | Q13: 202 | R13: 212 | S13: 227 | T13: 202 | U13: 206 | V13: 257 | W13: 288 | X13: 372 | Y13: 431
G14: sluchově postižené | J14: 78 | K14: 74 | L14: 63 | M14: 88 | N14: 81 | O14: 82 | P14: 65 | Q14: 64 | R14: 74 | S14: 86 | T14: 90 | U14: 105 | V14: 96 | W14: 104 | X14: 130 | Y14: 135
G15: zrakově postižené | J15: 70 | K15: 68 | L15: 67 | M15: 54 | N15: 61 | O15: 62 | P15: 64 | Q15: 61 | R15: 83 | S15: 74 | T15: 85 | U15: 90 | V15: 124 | W15: 109 | X15: 113 | Y15: 111
G16: s vadami řeči1) | J16: 965 | K16: 920 | L16: 637 | M16: 703 | N16: 713 | O16: 701 | P16: 715 | Q16: 811 | R16: 763 | S16: 788 | T16: 835 | U16: 738 | V16: 851 | W16: 834 | X16: 1217 | Y16: 1475
G17: tělesně postižené | J17: 170 | K17: 187 | L17: 163 | M17: 176 | N17: 177 | O17: 159 | P17: 158 | Q17: 153 | R17: 172 | S17: 175 | T17: 200 | U17: 203 | V17: 180 | W17: 210 | X17: 238 | Y17: 278
G18: s více vadami | J18: 307 | K18: 283 | L18: 247 | M18: 204 | N18: 223 | O18: 218 | P18: 235 | Q18: 224 | R18: 239 | S18: 247 | T18: 225 | U18: 309 | V18: 321 | W18: 403 | X18: 448 | Y18: 436
G19: s vývojovými poruchami učení | K19: . | L19: . | M19: . | N19: . | O19: . | P19: . | Q19: . | R19: . | S19: . | T19: . | U19: . | V19: . | W19: . | X19: . | Y19: .
G20: s vývojovými poruchami chování1) | J20: 141 | K20: 127 | L20: 130 | M20: 109 | N20: 145 | O20: 152 | P20: 183 | Q20: 214 | R20: 262 | S20: 302 | T20: 335 | U20: 411 | V20: 429 | W20: 505 | X20: 700 | Y20: 925
G21: s lékařskou diagnózou autismus | J21: 23 | K21: 39 | L21: 45 | M21: 67 | N21: 89 | O21: 121 | P21: 166 | Q21: 182 | R21: 227 | S21: 257 | T21: 327 | U21: 422 | V21: 490 | W21: 576 | X21: 556 | Y21: 576
E22: Z toho dívky | J22: 725 | K22: 701 | L22: 541 | M22: 554 | N22: 602 | O22: 556 | P22: 626 | Q22: 651 | R22: 635 | S22: 662 | T22: 736 | U22: 735 | V22: 805 | W22: 926 | X22: 1141 | Y22: 1262
E23: v tom | G23: mentálně postižené | J23: 79 | K23: 71 | L23: 81 | M23: 86 | N23: 76 | O23: 77 | P23: 85 | Q23: 84 | R23: 78 | S23: 81 | T23: 82 | U23: 68 | V23: 87 | W23: 103 | X23: 137 | Y23: 146
G24: sluchově postižené | J24: 42 | K24: 33 | L24: 29 | M24: 36 | N24: 35 | O24: 45 | P24: 32 | Q24: 33 | R24: 31 | S24: 28 | T24: 36 | U24: 51 | V24: 50 | W24: 46 | X24: 58 | Y24: 51
G25: zrakově postižené | J25: 30 | K25: 31 | L25: 27 | M25: 27 | N25: 28 | O25: 31 | P25: 33 | Q25: 33 | R25: 43 | S25: 36 | T25: 43 | U25: 41 | V25: 56 | W25: 57 | X25: 65 | Y25: 59
G26: s vadami řeči1) | J26: 345 | K26: 335 | L26: 203 | M26: 228 | N26: 238 | O26: 207 | P26: 242 | Q26: 285 | R26: 240 | S26: 241 | T26: 261 | U26: 219 | V26: 230 | W26: 246 | X26: 366 | Y26: 415
G27: tělesně postižené | J27: 67 | K27: 70 | L27: 56 | M27: 61 | N27: 79 | O27: 68 | P27: 72 | Q27: 65 | R27: 69 | S27: 78 | T27: 106 | U27: 103 | V27: 81 | W27: 91 | X27: 104 | Y27: 126
G28: s více vadami | J28: 126 | K28: 115 | L28: 97 | M28: 85 | N28: 98 | O28: 73 | P28: 92 | Q28: 74 | R28: 76 | S28: 78 | T28: 85 | U28: 91 | V28: 113 | W28: 133 | X28: 149 | Y28: 143
G29: s vývojovými poruchami učení | K29: . | L29: . | M29: . | N29: . | O29: . | P29: . | Q29: . | R29: . | S29: . | T29: . | U29: . | V29: . | W29: . | X29: . | Y29: .
G30: s vývojovými poruchami chování1) | J30: 34 | K30: 37 | L30: 43 | M30: 21 | N30: 34 | O30: 36 | P30: 42 | Q30: 46 | R30: 62 | S30: 63 | T30: 58 | U30: 81 | V30: 86 | W30: 122 | X30: 148 | Y30: 208
G31: s lékařskou diagnózou autismus | J31: 2 | K31: 9 | L31: 5 | M31: 10 | N31: 14 | O31: 19 | P31: 28 | Q31: 31 | R31: 36 | S31: 57 | T31: 65 | U31: 81 | V31: 102 | W31: 128 | X31: 114 | Y31: 114
D32: Komentáře: | Y32: Zdroj: databáze MŠMT
D33: 1) | E33: Od školního roku 2016/17 se sledují pouze děti se "závažnými vadami řeči", se "závažnými vývojovými poruchami chování".

Sheet B9.1.2
D4: Tab. B9.1.2: | H4: Speciální třídy mateřských škol – zdravotně postižené
B5: 0 | D5: a znevýhodněné děti ve školním roce 2008/09 až 2018/19 – podle druhu postižení
D7: Druh postižení | J7: 2003/04 | K7: 2004/05 | L7: 2005/06 | M7: 2006/07 | N7: 2007/08 | O7: 2008/09 | P7: 2009/10 | Q7: 2010/11 | R7: 2011/12 | S7: 2012/13 | T7: 2013/14 | U7: 2014/15 | V7: 2015/16 | W7: 2016/17 | X7: 2017/18 | Y7: 2018/19
E12: Zdravotně postižené a znevýhodněné děti celkem1) | J12: 6586 | K12: 6369 | L12: 6727 | M12: 6877 | N12: 6850 | O12: 6980 | P12: 7190 | Q12: 7325 | R12: 7478 | S12: 7611 | T12: 7764 | U12: 7828 | V12: 7788 | W12: 7457 | X12: 7014 | Y12: 6878
E13: v tom | G13: mentálně postižené | J13: 319 | K13: 310 | L13: 345 | M13: 294 | N13: 268 | O13: 299 | P13: 302 | Q13: 282 | R13: 297 | S13: 281 | T13: 291 | U13: 292 | V13: 286 | W13: 286 | X13: 258 | Y13: 290
G14: sluchově postižené | J14: 141 | K14: 149 | L14: 153 | M14: 170 | N14: 155 | O14: 186 | P14: 178 | Q14: 178 | R14: 192 | S14: 186 | T14: 176 | U14: 178 | V14: 155 | W14: 159 | X14: 140 | Y14: 146
G15: zrakově postižené | J15: 409 | K15: 406 | L15: 410 | M15: 440 | N15: 436 | O15: 438 | P15: 421 | Q15: 432 | R15: 443 | S15: 461 | T15: 444 | U15: 397 | V15: 380 | W15: 363 | X15: 381 | Y15: 345
G16: s vadami řeči2) | J16: 4041 | K16: 3911 | L16: 4316 | M16: 4452 | N16: 4251 | O16: 4332 | P16: 4426 | Q16: 4506 | R16: 4524 | S16: 4688 | T16: 4775 | U16: 4866 | V16: 4803 | W16: 4568 | X16: 4233 | Y16: 4186
G17: tělesně postižené | J17: 118 | K17: 167 | L17: 200 | M17: 150 | N17: 178 | O17: 176 | P17: 171 | Q17: 176 | R17: 180 | S17: 196 | T17: 221 | U17: 147 | V17: 168 | W17: 157 | X17: 115 | Y17: 131
G18: s více vadami | J18: 1223 | K18: 1114 | L18: 954 | M18: 992 | N18: 1119 | O18: 1094 | P18: 1164 | Q18: 1148 | R18: 1160 | S18: 1097 | T18: 1028 | U18: 1039 | V18: 1052 | W18: 1023 | X18: 1130 | Y18: 1058
G19: s vývojovými poruchami učení | K19: . | L19: . | M19: . | N19: . | O19: . | P19: . | Q19: . | R19: . | S19: . | T19: . | U19: . | V19: . | W19: . | X19: . | Y19: .
G20: s vývojovými poruchami chování2) | J20: 282 | K20: 233 | L20: 225 | M20: 237 | N20: 222 | O20: 183 | P20: 207 | Q20: 232 | R20: 262 | S20: 239 | T20: 281 | U20: 294 | V20: 281 | W20: 246 | X20: 201 | Y20: 190
G21: s lékařskou diagnózou autismus | J21: 53 | K21: 79 | L21: 124 | M21: 142 | N21: 221 | O21: 272 | P21: 321 | Q21: 371 | R21: 420 | S21: 463 | T21: 548 | U21: 615 | V21: 663 | W21: 655 | X21: 556 | Y21: 532
E22: Z toho dívky1) | J22: 2275 | K22: 2218 | L22: 2366 | M22: 2376 | N22: 2383 | O22: 2303 | P22: 2408 | Q22: 2457 | R22: 2510 | S22: 2547 | T22: 2558 | U22: 2573 | V22: 2595 | W22: 2407 | X22: 2232 | Y22: 2168
E23: v tom | G23: mentálně postižené | J23: 103 | K23: 109 | L23: 139 | M23: 107 | N23: 104 | O23: 109 | P23: 87 | Q23: 101 | R23: 106 | S23: 90 | T23: 99 | U23: 105 | V23: 116 | W23: 108 | X23: 100 | Y23: 99
G24: sluchově postižené | J24: 48 | K24: 51 | L24: 62 | M24: 66 | N24: 61 | O24: 65 | P24: 84 | Q24: 83 | R24: 89 | S24: 87 | T24: 81 | U24: 78 | V24: 63 | W24: 74 | X24: 54 | Y24: 63
G25: zrakově postižené | J25: 212 | K25: 208 | L25: 195 | M25: 188 | N25: 203 | O25: 209 | P25: 208 | Q25: 204 | R25: 202 | S25: 208 | T25: 192 | U25: 198 | V25: 195 | W25: 178 | X25: 183 | Y25: 167
G26: s vadami řeči2) | J26: 1337 | K26: 1279 | L26: 1437 | M26: 1463 | N26: 1440 | O26: 1365 | P26: 1415 | Q26: 1472 | R26: 1509 | S26: 1542 | T26: 1546 | U26: 1569 | V26: 1580 | W26: 1430 | X26: 1341 | Y26: 1303
G27: tělesně postižené | J27: 41 | K27: 75 | L27: 99 | M27: 70 | N27: 78 | O27: 73 | P27: 83 | Q27: 81 | R27: 87 | S27: 92 | T27: 97 | U27: 68 | V27: 80 | W27: 65 | X27: 49 | Y27: 58
G28: s více vadami | J28: 430 | K28: 408 | L28: 358 | M28: 387 | N28: 401 | O28: 391 | P28: 386 | Q28: 377 | R28: 366 | S28: 367 | T28: 365 | U28: 361 | V28: 350 | W28: 347 | X28: 333 | Y28: 325
G29: s vývojovými poruchami učení | K29: . | L29: . | M29: . | N29: . | O29: . | P29: . | Q29: . | R29: . | S29: . | T29: . | U29: . | V29: . | W29: . | X29: . | Y29: .
G30: s vývojovými poruchami chování2) | J30: 89 | K30: 73 | L30: 56 | M30: 73 | N30: 50 | O30: 48 | P30: 81 | Q30: 72 | R30: 82 | S30: 72 | T30: 79 | U30: 83 | V30: 86 | W30: 70 | X30: 59 | Y30: 50
G31: s lékařskou diagnózou autismus | J31: 15 | K31: 15 | L31: 20 | M31: 22 | N31: 46 | O31: 43 | P31: 64 | Q31: 67 | R31: 69 | S31: 89 | T31: 99 | U31: 111 | V31: 125 | W31: 135 | X31: 113 | Y31: 103
D32: Komentáře: | Y32: Zdroj: databáze MŠMT
D33: 1) | E33: Speciální třídy včetně tříd ve školách zřízených pro děti se SVP.
D34: 2) | E34: Od školního roku 2016/17 se sledují pouze děti se "závažnými vadami řeči", se "závažnými vývojovými poruchami chování"

Sheet B9.1.3
D4: Tab. B9.1.3: | H4: Individuální integrace do běžných tříd základních škol – zdravotně
B5: 0 | D5: postižení a znevýhodnění žáci ve školním roce 2008/09 až 2018/19 – podle druhu postižení
D7: Druh postižení | J7: 2003/04 | K7: 2004/05 | L7: 2005/06 | M7: 2006/07 | N7: 2007/08 | O7: 2008/09 | P7: 2009/10 | Q7: 2010/11 | R7: 2011/12 | S7: 2012/13 | T7: 2013/14 | U7: 2014/15 | V7: 2015/16 | W7: 2016/17 | X7: 2017/18 | Y7: 2018/19
E12: Individuálně integrovaní žáci celkem | J12: 53550 | K12: 51587 | L12: 45556 | M12: 39982 | N12: 36085 | O12: 34350 | P12: 34761 | Q12: 36226 | R12: 39160 | S12: 40888 | T12: 43352 | U12: 45853 | V12: 49225 | W12: 53206 | X12: 68419 | Y12: 76037
E13: v tom | G13: mentálně postižení | J13: 383 | K13: 557 | L13: 697 | M13: 825 | N13: 962 | O13: 1069 | P13: 1091 | Q13: 1119 | R13: 1222 | S13: 1314 | T13: 1387 | U13: 1511 | V13: 1690 | W13: 2013 | X13: 2352 | Y13: 2813
G14: sluchově postižení | J14: 557 | K14: 556 | L14: 556 | M14: 537 | N14: 563 | O14: 570 | P14: 575 | Q14: 581 | R14: 582 | S14: 574 | T14: 597 | U14: 645 | V14: 705 | W14: 704 | X14: 689 | Y14: 696
G15: zrakově postižení | J15: 436 | K15: 416 | L15: 414 | M15: 401 | N15: 373 | O15: 381 | P15: 374 | Q15: 401 | R15: 398 | S15: 428 | T15: 441 | U15: 496 | V15: 519 | W15: 559 | X15: 582 | Y15: 615
G16: s vadami řeči1) | J16: 671 | K16: 644 | L16: 542 | M16: 542 | N16: 621 | O16: 660 | P16: 784 | Q16: 963 | R16: 1250 | S16: 1489 | T16: 1800 | U16: 2339 | V16: 2976 | W16: 3733 | X16: 4721 | Y16: 6081
G17: tělesně postižení | J17: 1235 | K17: 1178 | L17: 1079 | M17: 1066 | N17: 1070 | O17: 1006 | P17: 987 | Q17: 977 | R17: 1021 | S17: 1002 | T17: 971 | U17: 927 | V17: 926 | W17: 961 | X17: 919 | Y17: 912
G18: s více vadami | J18: 1100 | K18: 836 | L18: 784 | M18: 682 | N18: 632 | O18: 733 | P18: 647 | Q18: 703 | R18: 663 | S18: 696 | T18: 739 | U18: 704 | V18: 841 | W18: 1057 | X18: 3808 | Y18: 3744
G19: s vývojovými poruchami učení1) | K19: 47400 | L19: 39706 | M19: 34306 | N19: 30208 | O19: 28060 | P19: 27781 | Q19: 28370 | R19: 30149 | S19: 30678 | T19: 31610 | U19: 32085 | V19: 32830 | W19: 33830 | X19: 41691 | Y19: 44270
G20: s vývojovými poruchami chování1) | J20: 49168 | K20: . | L20: 1640 | M20: 1436 | N20: 1385 | O20: 1460 | P20: 1963 | Q20: 2374 | R20: 2929 | S20: 3527 | T20: 4349 | U20: 5388 | V20: 6559 | W20: 7777 | X20: 11610 | Y20: 14585
G21: s lékařskou diagnózou autismus | J21: . | K21: . | L21: 138 | M21: 187 | N21: 271 | O21: 411 | P21: 559 | Q21: 738 | R21: 946 | S21: 1180 | T21: 1458 | U21: 1758 | V21: 2179 | W21: 2572 | X21: 2047 | Y21: 2321
E22: Z toho dívky | J22: 15212 | K22: 14647 | L22: 12930 | M22: 11241 | N22: 10266 | O22: 9944 | P22: 10105 | Q22: 10650 | R22: 11643 | S22: 12180 | T22: 12894 | U22: 13604 | V22: 14544 | W22: 15647 | X22: 20787 | Y22: 23497
E23: v tom | G23: mentálně postižené | J23: 169 | K23: 225 | L23: 315 | M23: 355 | N23: 393 | O23: 481 | P23: 483 | Q23: 487 | R23: 544 | S23: 603 | T23: 622 | U23: 669 | V23: 743 | W23: 873 | X23: 1053 | Y23: 1234
G24: sluchově postižené | J24: 265 | K24: 268 | L24: 268 | M24: 265 | N24: 266 | O24: 273 | P24: 268 | Q24: 269 | R24: 285 | S24: 279 | T24: 286 | U24: 301 | V24: 332 | W24: 335 | X24: 334 | Y24: 336
G25: zrakově postižené | J25: 177 | K25: 169 | L25: 158 | M25: 158 | N25: 157 | O25: 161 | P25: 156 | Q25: 179 | R25: 187 | S25: 196 | T25: 211 | U25: 229 | V25: 230 | W25: 257 | X25: 266 | Y25: 278
G26: s vadami řeči1) | J26: 185 | K26: 192 | L26: 152 | M26: 147 | N26: 176 | O26: 195 | P26: 229 | Q26: 289 | R26: 358 | S26: 413 | T26: 492 | U26: 642 | V26: 809 | W26: 1004 | X26: 1272 | Y26: 1708
G27: tělesně postižené | J27: 499 | K27: 504 | L27: 449 | M27: 418 | N27: 423 | O27: 411 | P27: 409 | Q27: 412 | R27: 425 | S27: 412 | T27: 420 | U27: 406 | V27: 415 | W27: 441 | X27: 416 | Y27: 414
G28: s více vadami | J28: 404 | K28: 301 | L28: 259 | M28: 220 | N28: 204 | O28: 254 | P28: 232 | Q28: 234 | R28: 238 | S28: 253 | T28: 264 | U28: 236 | V28: 297 | W28: 354 | X28: 921 | Y28: 920
G29: s vývojovými poruchami učení1) | K29: 12988 | L29: 10992 | M29: 9436 | N29: 8399 | O29: 7915 | P29: 7931 | Q29: 8293 | R29: 9006 | S29: 9309 | T29: 9694 | U29: 9931 | V29: 10241 | W29: 10628 | X29: 14011 | Y29: 15336
G30: s vývojovými poruchami chování1) | J30: 13513 | K30: . | L30: 321 | M30: 219 | N30: 213 | O30: 208 | P30: 330 | Q30: 412 | R30: 481 | S30: 561 | T30: 717 | U30: 946 | V30: 1148 | W30: 1363 | X30: 2185 | Y30: 2902
G31: s lékařskou diagnózou autismus | J31: . | K31: . | L31: 16 | M31: 23 | N31: 35 | O31: 46 | P31: 67 | Q31: 75 | R31: 119 | S31: 154 | T31: 188 | U31: 244 | V31: 329 | W31: 392 | X31: 329 | Y31: 369
D32: Z toho žáci vyžadující zvýšené výdaje
E33: Zdravotně postižení a znevýhodnění žáci na 1. stupni ZŠ | J33: . | K33: . | L33: =SUM(L34:L42) -> 16684 | M33: =SUM(M34:M42) -> 14946 | N33: =SUM(N34:N42) -> 14061 | O33: =SUM(O34:O42) -> 13947 | P33: 14866 | Q33: 15973 | R33: 15052 | S33: 15896 | T33: 16708 | U33: 18205 | V33: 20032 | W33: 21909 | X33: 5926 | Y33: .
E34: v tom | G34: mentálně postižení | J34: . | K34: . | L34: 494 | M34: 553 | N34: 632 | O34: 658 | P34: 646 | Q34: 629 | R34: 629 | S34: 702 | T34: 730 | U34: 820 | V34: 938 | W34: 1101 | X34: 125 | Y34: .
G35: sluchově postižení | J35: . | K35: . | L35: 282 | M35: 262 | N35: 262 | O35: 271 | P35: 290 | Q35: 309 | R35: 278 | S35: 292 | T35: 284 | U35: 322 | V35: 377 | W35: 380 | X35: 90 | Y35: .
G36: zrakově postižení | J36: . | K36: . | L36: 192 | M36: 194 | N36: 186 | O36: 188 | P36: 211 | Q36: 221 | R36: 208 | S36: 235 | T36: 229 | U36: 263 | V36: 277 | W36: 297 | X36: 68 | Y36: .
G37: s vadami řeči1) | J37: . | K37: . | L37: 384 | M37: 366 | N37: 437 | O37: 474 | P37: 579 | Q37: 708 | R37: 842 | S37: 1015 | T37: 1260 | U37: 1612 | V37: 1994 | W37: 2484 | X37: 810 | Y37: .
G38: tělesně postižení | J38: . | K38: . | L38: 538 | M38: 518 | N38: 509 | O38: 485 | P38: 479 | Q38: 496 | R38: 466 | S38: 479 | T38: 482 | U38: 457 | V38: 458 | W38: 465 | X38: 124 | Y38: .
G39: s více vadami | J39: . | K39: . | L39: 422 | M39: 364 | N39: 352 | O39: 404 | P39: 381 | Q39: 373 | R39: 372 | S39: 414 | T39: 463 | U39: 453 | V39: 535 | W39: 648 | X39: 84 | Y39: .
G40: s vývojovými poruchami učení1) | L40: 13682 | M40: 12006 | N40: 10972 | O40: 10575 | P40: 11074 | Q40: 11659 | R40: 10406 | S40: 10425 | T40: 10380 | U40: 10648 | V40: 11027 | W40: 11351 | X40: 3538 | Y40: .
G41: s vývojovými poruchami chování1) | J41: . | K41: . | L41: 597 | M41: 560 | N41: 542 | O41: 628 | P41: 837 | Q41: 1084 | R41: 1271 | S41: 1591 | T41: 1989 | U41: 2522 | V41: 3115 | W41: 3701 | X41: 888 | Y41: .
G42: s lékařskou diagnózou autismus | J42: . | K42: . | L42: 93 | M42: 123 | N42: 169 | O42: 264 | P42: 369 | Q42: 494 | R42: 580 | S42: 743 | T42: 891 | U42: 1108 | V42: 1311 | W42: 1482 | X42: 199 | Y42: .
E43: Z toho dívky | J43: . | K43: . | L43: =SUM(L44:L52) -> 4934 | M43: =SUM(M44:M52) -> 4393 | N43: =SUM(N44:N52) -> 4259 | O43: =SUM(O44:O52) -> 4252 | P43: 4580 | Q43: 4932 | R43: 4591 | S43: 4771 | T43: 4936 | U43: 5415 | V43: 5898 | W43: 6423 | X43: 1755 | Y43: .
E44: v tom | G44: mentálně postižené | J44: . | K44: . | L44: 221 | M44: 237 | N44: 265 | O44: 298 | P44: 284 | Q44: 286 | R44: 278 | S44: 320 | T44: 327 | U44: 372 | V44: 402 | W44: 457 | X44: 51 | Y44: .
G45: sluchově postižené | J45: . | K45: . | L45: 143 | M45: 128 | N45: 123 | O45: 125 | P45: 128 | Q45: 135 | R45: 138 | S45: 146 | T45: 147 | U45: 156 | V45: 177 | W45: 174 | X45: 41 | Y45: .
G46: zrakově postižené | J46: . | K46: . | L46: 78 | M46: 82 | N46: 85 | O46: 82 | P46: 88 | Q46: 105 | R46: 99 | S46: 111 | T46: 116 | U46: 128 | V46: 128 | W46: 138 | X46: 32 | Y46: .
G47: s vadami řeči1) | J47: . | K47: . | L47: 103 | M47: 94 | N47: 126 | O47: 150 | P47: 171 | Q47: 209 | R47: 231 | S47: 274 | T47: 338 | U47: 437 | V47: 540 | W47: 662 | X47: 217 | Y47: .
G48: tělesně postižené | J48: . | K48: . | L48: 213 | M48: 199 | N48: 209 | O48: 207 | P48: 213 | Q48: 220 | R48: 211 | S48: 208 | T48: 210 | U48: 204 | V48: 208 | W48: 223 | X48: 63 | Y48: .
G49: s více vadami | J49: . | K49: . | L49: 144 | M49: 123 | N49: 119 | O49: 154 | P49: 131 | Q49: 126 | R49: 130 | S49: 155 | T49: 164 | U49: 153 | V49: 186 | W49: 208 | X49: 26 | Y49: .
G50: s vývojovými poruchami učení1) | L50: 3905 | M50: 3435 | N50: 3239 | O50: 3122 | P50: 3376 | Q50: 3602 | R50: 3243 | S50: 3221 | T50: 3202 | U50: 3358 | V50: 3524 | W50: 3666 | X50: 1107 | Y50: .
G51: s vývojovými poruchami chování1) | J51: . | K51: . | L51: 120 | M51: 81 | N51: 72 | O51: 85 | P51: 147 | Q51: 197 | R51: 192 | S51: 244 | T51: 321 | U51: 447 | V51: 535 | W51: 652 | X51: 178 | Y51: .
G52: s lékařskou diagnózou autismus | J52: . | K52: . | L52: 7 | M52: 14 | N52: 21 | O52: 29 | P52: 42 | Q52: 52 | R52: 69 | S52: 92 | T52: 111 | U52: 160 | V52: 198 | W52: 243 | X52: 40 | Y52: .
E53: Zdravotně postižení a znevýhodnění žáci na 2. stupni ZŠ | J53: . | K53: . | L53: =SUM(L54:L62) -> 20714 | M53: =SUM(M54:M62) -> 17838 | N53: =SUM(N54:N62) -> 15529 | O53: =SUM(O54:O62) -> 13624 | P53: 13164 | Q53: 13720 | R53: 13401 | S53: 14157 | T53: 14995 | U53: 16068 | V53: 17419 | W53: 18869 | X53: 8858 | Y53: .
E54: v tom | G54: mentálně postižení | J54: . | K54: . | L54: 167 | M54: 198 | N54: 265 | O54: 340 | P54: 350 | Q54: 388 | R54: 404 | S54: 422 | T54: 431 | U54: 477 | V54: 544 | W54: 635 | X54: 141 | Y54: .
G55: sluchově postižení | J55: . | K55: . | L55: 212 | M55: 232 | N55: 232 | O55: 229 | P55: 223 | Q55: 218 | R55: 205 | S55: 202 | T55: 224 | U55: 232 | V55: 242 | W55: 239 | X55: 99 | Y55: .
G56: zrakově postižení | J56: . | K56: . | L56: 184 | M56: 177 | N56: 158 | O56: 155 | P56: 130 | Q56: 141 | R56: 126 | S56: 138 | T56: 150 | U56: 174 | V56: 187 | W56: 183 | X56: 58 | Y56: .
G57: s vadami řeči1) | J57: . | K57: . | L57: 88 | M57: 89 | N57: 102 | O57: 108 | P57: 106 | Q57: 132 | R57: 156 | S57: 197 | T57: 265 | U57: 400 | V57: 581 | W57: 748 | X57: 395 | Y57: .
G58: tělesně postižení | J58: . | K58: . | L58: 434 | M58: 435 | N58: 439 | O58: 387 | P58: 390 | Q58: 406 | R58: 338 | S58: 339 | T58: 348 | U58: 341 | V58: 356 | W58: 371 | X58: 117 | Y58: .
G59: s více vadami | J59: . | K59: . | L59: 276 | M59: 270 | N59: 220 | O59: 255 | P59: 208 | Q59: 230 | R59: 265 | S59: 254 | T59: 246 | U59: 233 | V59: 282 | W59: 313 | X59: 98 | Y59: .
G60: s vývojovými poruchami učení1) | L60: 18788 | M60: 15824 | N60: 13520 | O60: 11607 | P60: 11027 | Q60: 11312 | R60: 10887 | S60: 11333 | T60: 11734 | U60: 12139 | V60: 12573 | W60: 13042 | X60: 6692 | Y60: .
G61: s vývojovými poruchami chování1) | J61: . | K61: . | L61: 528 | M61: 558 | N61: 510 | O61: 432 | P61: 581 | Q61: 684 | R61: 767 | S61: 934 | T61: 1151 | U61: 1529 | V61: 1923 | W61: 2420 | X61: 1032 | Y61: .
G62: s lékařskou diagnózou autismus | J62: . | K62: . | L62: 37 | M62: 55 | N62: 83 | O62: 111 | P62: 149 | Q62: 209 | R62: 253 | S62: 338 | T62: 446 | U62: 543 | V62: 731 | W62: 918 | X62: 226 | Y62: .
E63: Z toho dívky | J63: . | K63: . | L63: =SUM(L64:L72) -> 5661 | M63: =SUM(M64:M72) -> 4801 | N63: =SUM(N64:N72) -> 4107 | O63: =SUM(O64:O72) -> 3705 | P63: 3588 | Q63: 3829 | R63: 3856 | S63: 4111 | T63: 4342 | U63: 4607 | V63: 5037 | W63: 5452 | X63: 2657 | Y63: .
E64: v tom | G64: mentálně postižené | J64: . | K64: . | L64: 68 | M64: 87 | N64: 105 | O64: 151 | P64: 153 | Q64: 161 | R64: 185 | S64: 197 | T64: 176 | U64: 204 | V64: 246 | W64: 294 | X64: 61 | Y64: .
G65: sluchově postižené | J65: . | K65: . | L65: 99 | M65: 115 | N65: 112 | O65: 120 | P65: 111 | Q65: 109 | R65: 101 | S65: 95 | T65: 98 | U65: 103 | V65: 114 | W65: 121 | X65: 50 | Y65: .
G66: zrakově postižené | J66: . | K66: . | L66: 66 | M66: 68 | N66: 58 | O66: 61 | P66: 50 | Q66: 57 | R66: 61 | S66: 57 | T66: 60 | U66: 73 | V66: 76 | W66: 84 | X66: 24 | Y66: .
G67: s vadami řeči1) | J67: . | K67: . | L67: 20 | M67: 25 | N67: 23 | O67: 24 | P67: 28 | Q67: 44 | R67: 50 | S67: 62 | T67: 80 | U67: 111 | V67: 157 | W67: 203 | X67: 105 | Y67: .
G68: tělesně postižené | J68: . | K68: . | L68: 183 | M68: 171 | N68: 169 | O68: 149 | P68: 147 | Q68: 158 | R68: 118 | S68: 121 | T68: 147 | U68: 142 | V68: 156 | W68: 166 | X68: 43 | Y68: .
G69: s více vadami | J69: . | K69: . | L69: 92 | M69: 83 | N69: 72 | O69: 82 | P69: 81 | Q69: 77 | R69: 98 | S69: 87 | T69: 90 | U69: 75 | V69: 106 | W69: 119 | X69: 31 | Y69: .
G70: s vývojovými poruchami učení1) | L70: 5028 | M70: 4157 | N70: 3480 | O70: 3045 | P70: 2918 | Q70: 3099 | R70: 3085 | S70: 3298 | T70: 3444 | U70: 3563 | V70: 3753 | W70: 3944 | X70: 2128 | Y70: .
G71: s vývojovými poruchami chování1) | J71: . | K71: . | L71: 103 | M71: 89 | N71: 80 | O71: 62 | P71: 82 | Q71: 106 | R71: 126 | S71: 149 | T71: 190 | U71: 262 | V71: 325 | W71: 401 | X71: 181 | Y71: .
G72: s lékařskou diagnózou autismus | J72: . | K72: . | L72: 2 | M72: 6 | N72: 8 | O72: 11 | P72: 18 | Q72: 18 | R72: 32 | S72: 45 | T72: 57 | U72: 74 | V72: 104 | W72: 120 | X72: 34 | Y72: .
D73: Komentáře: | Y73: Zdroj: databáze MŠMT
D74: 1) | E74: Od školního roku 2016/17 se sledují pouze žáci se "závažnými vadami řeči", se "závažnými poruchami chování" a "závažnými vývojovými poruchami učení".

Sheet B9.1.4
D4: Tab. B9.1.4: | H4: Speciální třídy základních škol – zdravotně postižení
B5: 0 | D5: a znevýhodnění žáci ve školním roce 2008/09 až 2018/19 – podle druhu postižení
D7: Druh postižení | J7: 2003/04 | K7: 2004/05 | L7: 2005/06 | M7: 2006/07 | N7: 2007/08 | O7: 2008/09 | P7: 2009/10 | Q7: 2010/11 | R7: 2011/12 | S7: 2012/13 | T7: 2013/14 | U7: 2014/15 | V7: 2015/16 | W7: 2016/17 | X7: 2017/18 | Y7: 2018/19
E12: Zdravotně postižení a znevýhodnění žáci celkem1) | J12: 46268 | K12: 45006 | L12: 43971 | M12: 42098 | N12: 40209 | O12: 38504 | P12: 37040 | Q12: 34497 | R12: 32631 | S12: 31222 | T12: 30277 | U12: 29995 | V12: 29492 | W12: 28438 | X12: 27212 | Y12: 25946
E13: v tom | G13: mentálně postižení | J13: 28248 | K13: 27626 | L13: 27450 | M13: 26304 | N13: 25279 | O13: 24416 | P13: 23553 | Q13: 21087 | R13: 19040 | S13: 17161 | T13: 15844 | U13: 14978 | V13: 13963 | W13: 12818 | X13: 11517 | Y13: 10838
G14: sluchově postižení | J14: 944 | K14: 937 | L14: 763 | M14: 739 | N14: 708 | O14: 694 | P14: 680 | Q14: 635 | R14: 559 | S14: 539 | T14: 523 | U14: 538 | V14: 553 | W14: 522 | X14: 484 | Y14: 393
G15: zrakově postižení | J15: 602 | K15: 569 | L15: 306 | M15: 383 | N15: 367 | O15: 339 | P15: 329 | Q15: 271 | R15: 273 | S15: 204 | T15: 190 | U15: 205 | V15: 185 | W15: 177 | X15: 158 | Y15: 165
G16: s vadami řeči2) | J16: 1382 | K16: 1402 | L16: 1025 | M16: 1274 | N16: 1228 | O16: 1414 | P16: 1527 | Q16: 1571 | R16: 1685 | S16: 1878 | T16: 2026 | U16: 2299 | V16: 2620 | W16: 2681 | X16: 2481 | Y16: 2444
G17: tělesně postižení | J17: 841 | K17: 896 | L17: 413 | M17: 420 | N17: 363 | O17: 308 | P17: 297 | Q17: 299 | R17: 226 | S17: 254 | T17: 235 | U17: 218 | V17: 226 | W17: 238 | X17: 189 | Y17: 109
G18: s více vadami | J18: 2916 | K18: 2756 | L18: 3906 | M18: 3934 | N18: 3989 | O18: 4023 | P18: 4080 | Q18: 4317 | R18: 4769 | S18: 4579 | T18: 4740 | U18: 4734 | V18: 4808 | W18: 4853 | X18: 7179 | Y18: 7791
G19: s vývojovými poruchami učení2) | K19: 10349 | L19: 8906 | M19: 7713 | N19: 6780 | O19: 5635 | P19: 4932 | Q19: 4611 | R19: 4102 | S19: 3843 | T19: 3537 | U19: 3386 | V19: 3051 | W19: 2808 | X19: 2362 | Y19: 1883
G20: s vývojovými poruchami chování2) | J20: 10958 | K20: . | L20: 649 | M20: 681 | N20: 784 | O20: 888 | P20: 739 | Q20: 695 | R20: 738 | S20: 910 | T20: 1091 | U20: 1281 | V20: 1415 | W20: 1448 | X20: 1290 | Y20: 1270
G21: s lékařskou diagnózou autismus | J21: 377 | K21: 471 | L21: 553 | M21: 650 | N21: 711 | O21: 787 | P21: 903 | Q21: 1011 | R21: 1239 | S21: 1854 | T21: 2091 | U21: 2356 | V21: 2671 | W21: 2893 | X21: 1552 | Y21: 1053
E22: Z toho dívky1) | J22: 17533 | K22: 17020 | L22: 16601 | M22: 15830 | N22: 15044 | O22: 14344 | P22: 13849 | Q22: 12903 | R22: 12106 | S22: 11553 | T22: 11092 | U22: 10938 | V22: 10763 | W22: 10345 | X22: 9880 | Y22: 9382
E23: v tom | G23: mentálně postižené | J23: 11516 | K23: 11254 | L23: 11050 | M23: 10546 | N23: 10085 | O23: 9689 | P23: 9409 | Q23: 8520 | R23: 7716 | S23: 7045 | T23: 6561 | U23: 6250 | V23: 5950 | W23: 5486 | X23: 4999 | Y23: 4743
G24: sluchově postižené | J24: 403 | K24: 388 | L24: 304 | M24: 298 | N24: 282 | O24: 276 | P24: 276 | Q24: 246 | R24: 224 | S24: 230 | T24: 235 | U24: 221 | V24: 226 | W24: 216 | X24: 208 | Y24: 177
G25: zrakově postižené | J25: 251 | K25: 232 | L25: 130 | M25: 161 | N25: 138 | O25: 140 | P25: 140 | Q25: 110 | R25: 110 | S25: 84 | T25: 79 | U25: 87 | V25: 77 | W25: 76 | X25: 60 | Y25: 70
G26: s vadami řeči2) | J26: 453 | K26: 443 | L26: 312 | M26: 389 | N26: 367 | O26: 408 | P26: 435 | Q26: 434 | R26: 466 | S26: 524 | T26: 538 | U26: 605 | V26: 694 | W26: 754 | X26: 696 | Y26: 650
G27: tělesně postižené | J27: 359 | K27: 379 | L27: 165 | M27: 172 | N27: 151 | O27: 119 | P27: 115 | Q27: 119 | R27: 97 | S27: 113 | T27: 95 | U27: 85 | V27: 94 | W27: 95 | X27: 78 | Y27: 42
G28: s více vadami | J28: 1165 | K28: 1087 | L28: 1535 | M28: 1511 | N28: 1527 | O28: 1535 | P28: 1552 | Q28: 1661 | R28: 1824 | S28: 1797 | T28: 1827 | U28: 1869 | V28: 1872 | W28: 1888 | X28: 2439 | Y28: 2532
G29: s vývojovými poruchami učení2) | K29: 3111 | L29: 2791 | M29: 2442 | N29: 2148 | O29: 1771 | P29: 1559 | Q29: 1456 | R29: 1270 | S29: 1205 | T29: 1135 | U29: 1075 | V29: 990 | W29: 926 | X29: 818 | Y29: 691
G30: s vývojovými poruchami chování2) | J30: 3276 | K30: . | L30: 165 | M30: 150 | N30: 166 | O30: 213 | P30: 169 | Q30: 141 | R30: 150 | S30: 181 | T30: 206 | U30: 270 | V30: 332 | W30: 328 | X30: 285 | Y30: 288
G31: s lékařskou diagnózou autismus | J31: 110 | K31: 126 | L31: 149 | M31: 161 | N31: 180 | O31: 193 | P31: 194 | Q31: 216 | R31: 249 | S31: 374 | T31: 416 | U31: 476 | V31: 528 | W31: 576 | X31: 297 | Y31: 189
D32: Z toho žáci na 1. stupni
E33: Zdravotně postižení a znevýhodnění žáci celkem1) | J33: . | K33: . | L33: =SUM(L34:L42) -> 19501 | M33: =SUM(M34:M42) -> 18397 | N33: =SUM(N34:N42) -> 17559 | O33: =SUM(O34:O42) -> 16806 | P33: 16519 | Q33: 15626 | R33: 14780 | S33: 14296 | T33: 13896 | U33: 14216 | V33: 14610 | W33: 14402 | X33: 13841 | Y33: 13493
E34: v tom | G34: mentálně postižení | J34: . | K34: . | L34: 10849 | M34: 10366 | N34: 9958 | O34: 9740 | P34: 9580 | Q34: 8498 | R34: 7574 | S34: 6633 | T34: 6010 | U34: 5925 | V34: 5780 | W34: 5441 | X34: 4886 | Y34: 4823
G35: sluchově postižení | J35: . | K35: . | L35: 419 | M35: 410 | N35: 391 | O35: 391 | P35: 392 | Q35: 355 | R35: 332 | S35: 331 | T35: 314 | U35: 313 | V35: 328 | W35: 304 | X35: 286 | Y35: 234
G36: zrakově postižení | J36: . | K36: . | L36: 150 | M36: 183 | N36: 191 | O36: 169 | P36: 165 | Q36: 148 | R36: 150 | S36: 98 | T36: 94 | U36: 117 | V36: 106 | W36: 104 | X36: 89 | Y36: 82
G37: s vadami řeči2) | J37: . | K37: . | L37: 829 | M37: 1010 | N37: 929 | O37: 1090 | P37: 1154 | Q37: 1212 | R37: 1340 | S37: 1531 | T37: 1642 | U37: 1856 | V37: 2112 | W37: 2134 | X37: 1938 | Y37: 1883
G38: tělesně postižení | J38: . | K38: . | L38: 232 | M38: 247 | N38: 204 | O38: 172 | P38: 168 | Q38: 170 | R38: 131 | S38: 152 | T38: 137 | U38: 114 | V38: 105 | W38: 132 | X38: 92 | Y38: 58
G39: s více vadami | J39: . | K39: . | L39: 2480 | M39: 2388 | N39: 2421 | O39: 2283 | P39: 2372 | Q39: 2528 | R39: 2587 | S39: 2431 | T39: 2509 | U39: 2518 | V39: 2611 | W39: 2741 | X39: 4273 | Y39: 4597
G40: s vývojovými poruchami učení2) | K40: . | L40: 3813 | M40: 2996 | N40: 2606 | O40: 2085 | P40: 1774 | Q40: 1723 | R40: 1520 | S40: 1491 | T40: 1312 | U40: 1258 | V40: 1154 | W40: 1032 | X40: 932 | Y40: 596
G41: s vývojovými poruchami chování2) | J41: . | K41: . | L41: 316 | M41: 316 | N41: 373 | O41: 340 | P41: 308 | Q41: 311 | R41: 350 | S41: 451 | T41: 556 | U41: 640 | V41: 690 | W41: 655 | X41: 552 | Y41: 549
G42: s lékařskou diagnózou autismus | J42: . | K42: . | L42: 413 | M42: 481 | N42: 486 | O42: 536 | P42: 606 | Q42: 681 | R42: 796 | S42: 1178 | T42: 1322 | U42: 1475 | V42: 1724 | W42: 1859 | X42: 793 | Y42: 671
E43: Z toho dívky1) | J43: . | K43: . | L43: =SUM(L44:L52) -> 7340 | M43: =SUM(M44:M52) -> 6933 | N43: =SUM(N44:N52) -> 6530 | O43: =SUM(O44:O52) -> 6244 | P43: 6172 | Q43: 5731 | R43: 5387 | S43: 5154 | T43: 4908 | U43: 5004 | V43: 5129 | W43: 5065 | X43: 4836 | Y43: 4710
E44: v tom | G44: mentálně postižené | J44: . | K44: . | L44: 4369 | M44: 4178 | N44: 3981 | O44: 3899 | P44: 3866 | Q44: 3434 | R44: 3081 | S44: 2710 | T44: 2465 | U44: 2461 | V44: 2452 | W44: 2311 | X44: 2077 | Y44: 2071
G45: sluchově postižené | J45: . | K45: . | L45: 166 | M45: 163 | N45: 149 | O45: 149 | P45: 155 | Q45: 135 | R45: 134 | S45: 142 | T45: 141 | U45: 125 | V45: 136 | W45: 132 | X45: 126 | Y45: 107
G46: zrakově postižené | J46: . | K46: . | L46: 63 | M46: 76 | N46: 66 | O46: 72 | P46: 70 | Q46: 60 | R46: 61 | S46: 42 | T46: 40 | U46: 46 | V46: 43 | W46: 46 | X46: 37 | Y46: 34
G47: s vadami řeči2) | J47: . | K47: . | L47: 240 | M47: 297 | N47: 257 | O47: 297 | P47: 314 | Q47: 325 | R47: 374 | S47: 437 | T47: 453 | U47: 491 | V47: 563 | W47: 609 | X47: 545 | Y47: 517
G48: tělesně postižené | J48: . | K48: . | L48: 92 | M48: 103 | N48: 88 | O48: 71 | P48: 67 | Q48: 61 | R48: 54 | S48: 65 | T48: 51 | U48: 38 | V48: 44 | W48: 53 | X48: 37 | Y48: 26
G49: s více vadami | J49: . | K49: . | L49: 981 | M49: 921 | N49: 921 | O49: 878 | P49: 924 | Q49: 992 | R49: 990 | S49: 963 | T49: 975 | U49: 987 | V49: 982 | W49: 1046 | X49: 1429 | Y49: 1490
G50: s vývojovými poruchami učení2) | K50: . | L50: 1235 | M50: 1007 | N50: 877 | O50: 691 | P50: 587 | Q50: 537 | R50: 477 | S50: 487 | T50: 433 | U50: 427 | V50: 402 | W50: 346 | X50: 180 | Y50: 235
G51: s vývojovými poruchami chování2) | J51: . | K51: . | L51: 78 | M51: 73 | N51: 80 | O51: 71 | P51: 74 | Q51: 66 | R51: 73 | S51: 90 | T51: 111 | U51: 140 | V51: 172 | W51: 154 | X51: 120 | Y51: 116
G52: s lékařskou diagnózou autismus | J52: . | K52: . | L52: 116 | M52: 115 | N52: 111 | O52: 116 | P52: 115 | Q52: 121 | R52: 143 | S52: 218 | T52: 239 | U52: 289 | V52: 335 | W52: 368 | X52: 285 | Y52: 114
D53: Komentáře: | Y53: Zdroj: databáze MŠMT
D54: 1) | E54: Speciální třídy včetně tříd ve školách zřízených pro žáky se SVP.
D55: 2) | E55: Od školního roku 2016/17 se sledují pouze žáci se "závažnými vadami řeči", se "závažnými poruchami chování" a "závažnými vývojovými poruchami učení".

Sheet B9.1.5
D4: Tab. B9.1.5: | H4: Individuální integrace do běžných tříd středních škol – zdravotně
B5: 0 | D5: postižení a znevýhodnění žáci ve školním roce 2008/09 až 2018/19 – podle druhu postižení
D7: Druh postižení | J7: 2003/04 | K7: 2004/05 | L7: 2005/06 | M7: 2006/07 | N7: 2007/08 | O7: 2008/09 | P7: 2009/10 | Q7: 2010/11 | R7: 2011/12 | S7: 2012/13 | T7: 2013/14 | U7: 2014/15 | V7: 2015/16 | W7: 2016/17 | X7: 2017/18 | Y7: 2018/19
E12: Individuálně integrovaní žáci celkem1) | J12: 4003 | K12: 4509 | L12: 4164 | M12: 4502 | N12: 4729 | O12: 5158 | P12: 6284 | Q12: 6532 | R12: 7295 | S12: 7807 | T12: 8872 | U12: 8982 | V12: 9505 | W12: 10482 | X12: 12985 | Y12: 14203
E13: v tom | G13: mentálně postižení | J13: 0 | K13: 0 | L13: 48 | M13: 84 | N13: 102 | O13: 89 | P13: 132 | Q13: 468 | R13: 417 | S13: 670 | T13: 752 | U13: 542 | V13: 596 | W13: 729 | X13: 725 | Y13: 645
G14: sluchově postižení | J14: 139 | K14: 131 | L14: 109 | M14: 121 | N14: 121 | O14: 136 | P14: 156 | Q14: 192 | R14: 193 | S14: 217 | T14: 218 | U14: 225 | V14: 225 | W14: 232 | X14: 234 | Y14: 256
G15: zrakově postižení | J15: . | K15: . | L15: . | M15: 81 | N15: 74 | O15: 78 | P15: 106 | Q15: 113 | R15: 108 | S15: 136 | T15: 130 | U15: 128 | V15: 132 | W15: 126 | X15: 167 | Y15: 338
G16: s vadami řeči2) | J16: 116 | K16: 102 | L16: 61 | M16: 6 | N16: 15 | O16: 21 | P16: 23 | Q16: 34 | R16: 40 | S16: 42 | T16: 68 | U16: 81 | V16: 105 | W16: 135 | X16: 220 | Y16: 163
G17: tělesně postižení | J17: 321 | K17: 325 | L17: 213 | M17: 318 | N17: 262 | O17: 338 | P17: 370 | Q17: 376 | R17: 357 | S17: 338 | T17: 316 | U17: 312 | V17: 307 | W17: 328 | X17: 311 | Y17: 285
G18: s více vadami | J18: 93 | K18: 59 | L18: 40 | M18: 48 | N18: 78 | O18: 81 | P18: 113 | Q18: 103 | R18: 125 | S18: 109 | T18: 99 | U18: 103 | V18: 131 | W18: 182 | X18: 388 | Y18: 474
G19: s vývojovými poruchami učení2) | K19: 3892 | L19: 3680 | M19: 3826 | N19: 4056 | O19: 4381 | P19: 5337 | Q19: 5166 | R19: 5939 | S19: 6040 | T19: 6947 | U19: 7106 | V19: 7358 | W19: 7907 | X19: 9798 | Y19: 10404
G20: s vývojovými poruchami chování2) | J20: 3334 | K20: . | L20: . | M20: . | N20: . | O20: . | P20: . | Q20: . | R20: . | S20: 94 | T20: 115 | U20: 220 | V20: 285 | W20: 370 | X20: 700 | Y20: 1103
G21: s lékařskou diagnózou autismus | J21: . | K21: . | L21: 13 | M21: 18 | N21: 21 | O21: 34 | P21: 47 | Q21: 80 | R21: 116 | S21: 161 | T21: 227 | U21: 265 | V21: 366 | W21: 473 | X21: 442 | Y21: 535
E22: Z toho dívky1) | J22: 1141 | K22: 1380 | L22: 1419 | M22: 1504 | N22: 1557 | O22: 1777 | P22: 2044 | Q22: 2253 | R22: 2452 | S22: 2561 | T22: 2894 | U22: 2918 | V22: 3192 | W22: 3293 | X22: 4108 | Y22: 4528
E23: v tom | G23: mentálně postižení | J23: 0 | K23: 0 | L23: 19 | M23: 21 | N23: 37 | O23: 29 | P23: 34 | Q23: 217 | R23: 174 | S23: 280 | T23: 290 | U23: 214 | V23: 252 | W23: 299 | X23: 296 | Y23: 263
G24: sluchově postižení | J24: 69 | K24: 74 | L24: 66 | M24: 76 | N24: 66 | O24: 77 | P24: 82 | Q24: 101 | R24: 99 | S24: 106 | T24: 104 | U24: 109 | V24: 109 | W24: 114 | X24: 115 | Y24: 123
G25: zrakově postižení | J25: . | K25: . | L25: . | M25: 48 | N25: 37 | O25: 31 | P25: 41 | Q25: 47 | R25: 40 | S25: 58 | T25: 57 | U25: 50 | V25: 62 | W25: 56 | X25: 66 | Y25: 101
G26: s vadami řeči2) | J26: 45 | K26: 53 | L26: 38 | M26: 2 | N26: 4 | O26: 8 | P26: 9 | Q26: 12 | R26: 13 | S26: 19 | T26: 25 | U26: 29 | V26: 32 | W26: 38 | X26: 66 | Y26: 73
G27: tělesně postižení | J27: 152 | K27: 161 | L27: 110 | M27: 177 | N27: 131 | O27: 159 | P27: 156 | Q27: 157 | R27: 128 | S27: 128 | T27: 133 | U27: 140 | V27: 127 | W27: 131 | X27: 130 | Y27: 120
G28: s více vadami | J28: 35 | K28: 26 | L28: 20 | M28: 23 | N28: 32 | O28: 38 | P28: 46 | Q28: 38 | R28: 46 | S28: 40 | T28: 34 | U28: 31 | V28: 49 | W28: 74 | X28: 104 | Y28: 116
G29: s vývojovými poruchami učení2) | K29: 1066 | L29: 1165 | M29: 1154 | N29: 1246 | O29: 1428 | P29: 1666 | Q29: 1671 | R29: 1942 | S29: 1900 | T29: 2204 | U29: 2271 | V29: 2443 | W29: 2423 | X29: 3081 | Y29: 3365
G30: s vývojovými poruchami chování2) | J30: 840 | K30: . | L30: . | M30: . | N30: . | O30: . | P30: . | Q30: . | R30: . | S30: 16 | T30: 23 | U30: 49 | V30: 68 | W30: 89 | X30: 188 | Y30: 295
G31: s lékařskou diagnózou autismus | J31: . | K31: . | L31: 1 | M31: 3 | N31: 4 | O31: 7 | P31: 10 | Q31: 10 | R31: 10 | S31: 14 | T31: 24 | U31: 25 | V31: 50 | W31: 69 | X31: 62 | Y31: 72
D32: Komentáře: | Y32: Zdroj: databáze MŠMT
D33: 1) | E33: Data pouze za denní formu vzdělávání.
D34: 2) | E34: Od školního roku 2016/17 se sledují pouze žáci se "závažnými vadami řeči", se "závažnými poruchami chování" a "závažnými vývojovými poruchami učení".

Sheet B9.1.6
D4: Tab. B9.1.6: | H4: Speciální třídy středních škol – zdravotně postižení
D5: a znevýhodnění žáci ve školním roce 2008/09 až 2018/19 – podle druhu postižení
D7: Druh postižení | J7: 2003/04 | K7: 2004/05 | L7: 2005/06 | M7: 2006/07 | N7: 2007/08 | O7: 2008/09 | P7: 2009/10 | Q7: 2010/11 | R7: 2011/12 | S7: 2012/13 | T7: 2013/14 | U7: 2014/15 | V7: 2015/16 | W7: 2016/17 | X7: 2017/18 | Y7: 2018/19
E12: Zdravotně postižení a znevýhodnění žáci celkem1),2) | J12: 16407 | K12: 16340 | L12: 16463 | M12: 16239 | N12: 14638 | O12: 13540 | P12: 13444 | Q12: 12199 | R12: 11830 | S12: 11353 | T12: 11004 | U12: 10853 | V12: 10541 | W12: 9853 | X12: 9331 | Y12: 7864
E13: v tom | G13: mentálně postižení | J13: 12413 | K13: 12591 | L13: 13551 | M13: 13233 | N13: 11331 | O13: 10619 | P13: 10285 | Q13: 8738 | R13: 8369 | S13: 7342 | T13: 6847 | U13: 6807 | V13: 6359 | W13: 5818 | X13: 5037 | Y13: 4048
G14: sluchově postižení | J14: 377 | K14: 392 | L14: 401 | M14: 392 | N14: 395 | O14: 387 | P14: 355 | Q14: 319 | R14: 289 | S14: 269 | T14: 279 | U14: 280 | V14: 279 | W14: 234 | X14: 209 | Y14: 187
G15: zrakově postižení | J15: . | K15: . | L15: . | M15: 289 | N15: 271 | O15: 223 | P15: 148 | Q15: 158 | R15: 150 | S15: 131 | T15: 148 | U15: 138 | V15: 166 | W15: 138 | X15: 126 | Y15: 71
G16: s vadami řeči3) | J16: 371 | K16: 349 | L16: 335 | M16: 12 | N16: 11 | O16: 17 | P16: 18 | Q16: 28 | R16: 42 | S16: 52 | T16: 44 | U16: 58 | V16: 62 | W16: 54 | X16: 61 | Y16: 111
G17: tělesně postižení | J17: 813 | K17: 860 | L17: 679 | M17: 495 | N17: 475 | O17: 432 | P17: 430 | Q17: 393 | R17: 375 | S17: 378 | T17: 351 | U17: 311 | V17: 312 | W17: 294 | X17: 275 | Y17: 192
G18: s více vadami | J18: 1545 | K18: 1252 | L18: 604 | M18: 549 | N18: 695 | O18: 747 | P18: 970 | Q18: 856 | R18: 932 | S18: 993 | T18: 1025 | U18: 1181 | V18: 1316 | W18: 1492 | X18: 2018 | Y18: 2195
G19: s vývojovými poruchami učení3) | K19: 886 | L19: 879 | M19: 1245 | N19: 1430 | O19: 1058 | P19: 1162 | Q19: 1622 | R19: 1562 | S19: 1647 | T19: 1689 | U19: 1350 | V19: 1208 | W19: 1009 | X19: 951 | Y19: 511
G20: s vývojovými poruchami chování3) | J20: 874 | K20: . | L20: . | M20: . | N20: . | O20: . | P20: . | Q20: . | R20: . | S20: 286 | T20: 310 | U20: 347 | V20: 368 | W20: 270 | X20: 316 | Y20: 287
G21: s lékařskou diagnózou autismus | J21: 14 | K21: 10 | L21: 14 | M21: 24 | N21: 30 | O21: 57 | P21: 76 | Q21: 85 | R21: 111 | S21: 255 | T21: 311 | U21: 381 | V21: 471 | W21: 544 | X21: 338 | Y21: 262
E22: Z toho dívky 1),2) | J22: 6516 | K22: 6653 | L22: 6704 | M22: 6673 | N22: 6145 | O22: 5665 | P22: 5640 | Q22: 4963 | R22: 4834 | S22: 4651 | T22: 4479 | U22: 4455 | V22: 4407 | W22: 4145 | X22: 3995 | Y22: 3488
E23: v tom | G23: mentálně postižení | J23: 4851 | K23: 5072 | L23: 5475 | M23: 5413 | N23: 4788 | O23: 4516 | P23: 4410 | Q23: 3691 | R23: 3537 | S23: 3121 | T23: 2912 | U23: 2929 | V23: 2815 | W23: 2600 | X23: 2334 | Y23: 1986
G24: sluchově postižení | J24: 178 | K24: 183 | L24: 178 | M24: 172 | N24: 159 | O24: 165 | P24: 160 | Q24: 136 | R24: 128 | S24: 115 | T24: 123 | U24: 124 | V24: 126 | W24: 113 | X24: 99 | Y24: 79
G25: zrakově postižení | J25: . | K25: . | L25: . | M25: 149 | N25: 138 | O25: 113 | P25: 66 | Q25: 66 | R25: 68 | S25: 53 | T25: 61 | U25: 57 | V25: 68 | W25: 57 | X25: 58 | Y25: 19
G26: s vadami řeči3) | J26: 202 | K26: 143 | L26: 166 | M26: 4 | N26: 5 | O26: 12 | P26: 12 | Q26: 11 | R26: 16 | S26: 22 | T26: 16 | U26: 18 | V26: 14 | W26: 19 | X26: 18 | Y26: 52
G27: tělesně postižení | J27: 420 | K27: 488 | L27: 319 | M27: 200 | N27: 194 | O27: 174 | P27: 154 | Q27: 150 | R27: 150 | S27: 160 | T27: 151 | U27: 130 | V27: 125 | W27: 120 | X27: 107 | Y27: 82
G28: s více vadami | J28: 617 | K28: 504 | L28: 300 | M28: 249 | N28: 299 | O28: 311 | P28: 389 | Q28: 366 | R28: 373 | S28: 408 | T28: 441 | U28: 493 | V28: 578 | W28: 668 | X28: 848 | Y28: 899
G29: s vývojovými poruchami učení3) | K29: 258 | L29: 264 | M29: 482 | N29: 553 | O29: 361 | P29: 430 | Q29: 526 | R29: 543 | S29: 608 | T29: 598 | U29: 491 | V29: 440 | W29: 383 | X29: 371 | Y29: 219
G30: s vývojovými poruchami chování3) | J30: 241 | K30: . | L30: . | M30: . | N30: . | O30: . | P30: . | Q30: . | R30: . | S30: 114 | T30: 119 | U30: 133 | V30: 142 | W30: 76 | X30: 98 | Y30: 101
G31: s lékařskou diagnózou autismus | J31: 7 | K31: 5 | L31: 2 | M31: 4 | N31: 9 | O31: 13 | P31: 19 | Q31: 17 | R31: 19 | S31: 50 | T31: 58 | U31: 80 | V31: 99 | W31: 109 | X31: 62 | Y31: 51
D32: Komentáře: | Y32: Zdroj: databáze MŠMT
D33: 1) | E33: Data pouze za denní formu vzdělávání.
D34: 2) | E34: Speciální třídy včetně tříd ve školách zřízených pro žáky se SVP.
D35: 3) | E35: Od školního roku 2016/17 se sledují pouze žáci se "závažnými vadami řeči", se "závažnými poruchami chování" a "závažnými vývojovými poruchami učení".

Sheet B9.1.7
D4: Tab. B9.1.7: | H4: Individuální integrace zdravotně postižených a znevýhodněných žáků do běžných škol konzervatoří
B5: 0 | D5: ve školním roce 2008/09 až 2018/19 – podle druhu postižení
D7: Druh postižení | J7: 2003/04 | K7: 2004/05 | L7: 2005/06 | M7: 2006/07 | N7: 2007/08 | O7: 2008/09 | P7: 2009/10 | Q7: 2010/11 | R7: 2011/12 | S7: 2012/13 | T7: 2013/14 | U7: 2014/15 | V7: 2015/16 | W7: 2016/17 | X7: 2017/18 | Y7: 2018/19
E12: Individuálně integrovaní žáci celkem1) | J12: 3 | K12: 10 | L12: 11 | M12: 9 | N12: 6 | O12: 2 | P12: 3 | Q12: 4 | R12: 15 | S12: 10 | T12: 13 | U12: 27 | V12: 27 | W12: 34 | X12: 53 | Y12: 613)
E13: v tom | G13: mentálně postižení | J13: 0 | K13: 0 | L13: 0 | M13: 0 | N13: 0 | O13: 0 | P13: 0 | Q13: 0 | R13: 0 | S13: 0 | T13: 0 | U13: 0 | V13: 0 | W13: 0 | X13: 0 | Y13: 1
G14: sluchově postižení | J14: 0 | K14: 0 | L14: 0 | M14: 0 | N14: 0 | O14: 0 | P14: 0 | Q14: 0 | R14: 0 | S14: 0 | T14: 0 | U14: 0 | V14: 0 | W14: 0 | X14: 0 | Y14: 2
G15: zrakově postižení | J15: . | K15: . | L15: . | M15: 0 | N15: 2 | O15: 2 | P15: 3 | Q15: 3 | R15: 1 | S15: 1 | T15: 3 | U15: 1 | V15: 3 | W15: 3 | X15: 12 | Y15: 11
G16: s vadami řeči2) | J16: 1 | K16: 1 | L16: 1 | M16: . | N16: . | O16: . | P16: . | Q16: . | R16: . | S16: . | T16: . | U16: . | V16: 2 | W16: 1 | X16: 0 | Y16: 4
G17: tělesně postižení | J17: 0 | K17: 1 | L17: 0 | M17: 1 | N17: 0 | O17: 0 | P17: 0 | Q17: 1 | R17: 1 | S17: 1 | T17: 0 | U17: 2 | V17: 2 | W17: 2 | X17: 4 | Y17: 2
G18: s více vadami | J18: 0 | K18: 0 | L18: 0 | M18: 0 | N18: 0 | O18: 0 | P18: 0 | Q18: 0 | R18: 0 | S18: 0 | T18: 0 | U18: 0 | V18: 0 | W18: 0 | X18: 6 | Y18: 5
G19: s vývojovými poruchami učení2) | J19: 2 | K19: 8 | L19: 10 | M19: 8 | N19: 4 | O19: 0 | P19: 0 | Q19: 0 | R19: 13 | S19: 8 | T19: 10 | U19: 24 | V19: 20 | W19: 27 | X19: 30 | Y19: 29
G20: s vývojovými poruchami chování2) | J20: . | K20: . | L20: . | M20: . | N20: . | O20: . | P20: . | Q20: . | R20: . | S20: . | T20: . | U20: . | V20: . | W20: . | X20: . | Y20: .
G21: s lékařskou diagnózou autismus | J21: 0 | K21: 0 | L21: 0 | M21: 0 | N21: 0 | O21: 0 | P21: 0 | Q21: 0 | R21: 0 | S21: 0 | T21: 0 | U21: 0 | V21: 0 | W21: 1 | X21: 1 | Y21: 3
E22: Z toho dívky1) | J22: 3 | K22: 9 | L22: 7 | M22: 7 | N22: 4 | O22: 1 | P22: 1 | Q22: 1 | R22: 4 | S22: 4 | T22: 4 | U22: 14 | V22: 12 | W22: 12 | X22: 21 | Y22: 333)
E23: v tom | G23: mentálně postižení | J23: 0 | K23: 0 | L23: 0 | M23: 0 | N23: 0 | O23: 0 | P23: 0 | Q23: 0 | R23: 0 | S23: 0 | T23: 0 | U23: 0 | V23: 0 | W23: 0 | X23: 0 | Y23: 0
G24: sluchově postižení | J24: 0 | K24: 0 | L24: 0 | M24: 0 | N24: 0 | O24: 0 | P24: 0 | Q24: 0 | R24: 0 | S24: 0 | T24: 0 | U24: 0 | V24: 0 | W24: 0 | X24: 0 | Y24: 1
G25: zrakově postižení | J25: . | K25: . | L25: . | M25: 0 | N25: 1 | O25: 1 | P25: 1 | Q25: 1 | R25: 0 | S25: 0 | T25: 1 | U25: 1 | V25: 1 | W25: 1 | X25: 3 | Y25: 4
G26: s vadami řeči2) | J26: 1 | K26: 1 | L26: 1 | M26: . | N26: . | O26: . | P26: . | Q26: . | R26: . | S26: . | T26: . | U26: . | V26: 0 | W26: 0 | X26: 0 | Y26: 1
G27: tělesně postižení | J27: 0 | K27: 1 | L27: 0 | M27: 1 | N27: 0 | O27: 0 | P27: 0 | Q27: 0 | R27: 1 | S27: 1 | T27: 0 | U27: 2 | V27: 2 | W27: 2 | X27: 4 | Y27: 1
G28: s více vadami | J28: 0 | K28: 0 | L28: 0 | M28: 0 | N28: 0 | O28: 0 | P28: 0 | Q28: 0 | R28: 0 | S28: 0 | T28: 0 | U28: 0 | V28: 0 | W28: 0 | X28: 0 | Y28: 1
G29: s vývojovými poruchami učení2) | J29: 2 | K29: 7 | L29: 6 | M29: 6 | N29: 3 | Q29: 0 | R29: 3 | S29: 3 | T29: 3 | U29: 11 | V29: 9 | W29: 9 | X29: 14 | Y29: 20
G30: s vývojovými poruchami chování2) | J30: . | K30: . | L30: . | M30: . | N30: . | O30: . | P30: . | Q30: . | R30: . | S30: . | T30: . | U30: . | V30: . | W30: . | X30: . | Y30: .
G31: s lékařskou diagnózou autismus | J31: 0 | K31: 0 | L31: 0 | M31: 0 | N31: 0 | O31: 0 | P31: 0 | Q31: 0 | R31: 0 | S31: 0 | T31: 0 | U31: 0 | V31: 0 | W31: 0 | X31: 0 | Y31: 1
D32: Komentáře: | Y32: Zdroj: databáze MŠMT
D33: 1) | E33: Data pouze za denní formu vzdělávání.
D34: 2) | E34: Od školního roku 2016/17 se sledují pouze žáci se "závažnými vadami řeči", se "závažnými poruchami chování" a "závažnými vývojovými poruchami učení".
D35: 3) | E35: Ve školním roce 2018/19 jsou v celku zahrnuti/y žáci/dívky s poruchami chování. Tyto poruchy nejsou samostatně vykazovány, proto součet za jednotlivé druhy postižení neodpovídá celkovému počtu žáků/dívek.

Sheet B9.1.8
D4: Tab. B9.1.8: | H4: Speciální konzervatoř – zdravotně postižení
D5: a znevýhodnění žáci ve školním roce 2008/09 až 2018/19 – podle druhu postižení
D7: Druh postižení | J7: 2003/04 | K7: 2004/05 | L7: 2005/06 | M7: 2006/07 | N7: 2007/08 | O7: 2008/09 | P7: 2009/10 | Q7: 2010/11 | R7: 2011/12 | S7: 2012/13 | T7: 2013/14 | U7: 2014/15 | V7: 2015/16 | W7: 2016/17 | X7: 2017/18 | Y7: 2018/19
E12: Zdravotně postižení a znevýhodnění žáci celkem1),2) | J12: 77 | K12: 80 | L12: 60 | M12: 59 | N12: 65 | O12: 62 | P12: 62 | Q12: 59 | R12: 50 | S12: 42 | T12: 35 | U12: 31 | V12: 30 | W12: 29 | X12: . | Y12: .
E13: v tom | G13: mentálně postižení | J13: 0 | K13: 0 | L13: 0 | M13: 0 | N13: 0 | O13: 0 | P13: 0 | Q13: 0 | R13: 0 | S13: 0 | T13: 0 | U13: 0 | V13: 0 | W13: 0 | X13: . | Y13: .
G14: sluchově postižení | J14: 0 | K14: 0 | L14: 0 | M14: 0 | N14: 0 | O14: 0 | P14: 0 | Q14: 0 | R14: 0 | S14: 0 | T14: 0 | U14: 0 | V14: 0 | W14: 0 | X14: . | Y14: .
G15: zrakově postižení | J15: . | K15: . | L15: . | M15: 52 | N15: 54 | O15: 56 | P15: 41 | Q15: 42 | R15: 35 | S15: 26 | T15: 25 | U15: 21 | V15: 20 | W15: 14 | X15: . | Y15: .
G16: s vadami řeči3) | J16: 75 | K16: 73 | L16: 51 | M16: . | N16: . | O16: . | P16: . | Q16: . | R16: . | S16: . | T16: . | U16: . | V16: 1 | W16: 0 | X16: . | Y16: .
G17: tělesně postižení | J17: 1 | K17: 2 | L17: 0 | M17: 0 | N17: 0 | O17: 2 | P17: 3 | Q17: 2 | R17: 3 | S17: 4 | T17: 4 | U17: 4 | V17: 4 | W17: 2 | X17: . | Y17: .
G18: s více vadami | J18: 1 | K18: 5 | L18: 9 | M18: 7 | N18: 10 | O18: 3 | P18: 17 | Q18: 14 | R18: 11 | S18: 10 | T18: 4 | U18: 1 | V18: 0 | W18: 2 | X18: . | Y18: .
G19: s vývojovými poruchami učení3) | J19: 0 | K19: 0 | L19: 0 | M19: 0 | N19: 1 | O19: 1 | P19: 1 | Q19: 1 | R19: 1 | S19: 2 | T19: 2 | U19: 4 | V19: 4 | W19: 9 | X19: . | Y19: .
G20: s vývojovými poruchami chování3) | J20: . | K20: . | L20: . | M20: . | N20: . | O20: . | P20: . | Q20: . | R20: . | S20: . | T20: . | U20: . | V20: . | W20: . | X20: . | Y20: .
G21: s lékařskou diagnózou autismus | J21: 0 | K21: 0 | L21: 0 | M21: 0 | N21: 0 | O21: 0 | P21: 0 | Q21: 0 | R21: 0 | S21: 0 | T21: 0 | U21: 1 | V21: 1 | W21: 2 | X21: . | Y21: .
E22: Z toho dívky 1),2) | J22: 45 | K22: 50 | L22: 45 | M22: 45 | N22: 45 | O22: 41 | P22: 40 | Q22: 32 | R22: 27 | S22: 23 | T22: 21 | U22: 16 | V22: 14 | W22: 13 | X22: . | Y22: .
E23: v tom | G23: mentálně postižení | J23: 0 | K23: 0 | L23: 0 | M23: 0 | N23: 0 | O23: 0 | P23: 0 | Q23: 0 | R23: 0 | S23: 0 | T23: 0 | U23: 0 | V23: 0 | W23: 0 | X23: . | Y23: .
G24: sluchově postižení | J24: 0 | K24: 0 | L24: 0 | M24: 0 | N24: 0 | O24: 0 | P24: 0 | Q24: 0 | R24: 0 | S24: 0 | T24: 0 | U24: 0 | V24: 0 | W24: 0 | X24: . | Y24: .
G25: zrakově postižení | J25: . | K25: . | L25: . | M25: 43 | N25: 41 | O25: 36 | P25: 29 | Q25: 26 | R25: 22 | S25: 15 | T25: 15 | U25: 11 | V25: 11 | W25: 7 | X25: . | Y25: .
G26: s vadami řeči3) | J26: 44 | K26: 47 | L26: 43 | M26: . | N26: . | O26: . | P26: . | Q26: . | R26: . | S26: . | T26: . | U26: . | V26: 0 | W26: 0 | X26: . | Y26: .
G27: tělesně postižení | J27: 1 | K27: 1 | L27: 0 | M27: 0 | N27: 0 | O27: 2 | P27: 3 | Q27: 2 | R27: 2 | S27: 4 | T27: 3 | U27: 3 | V27: 3 | W27: 2 | X27: . | Y27: .
G28: s více vadami | J28: 0 | K28: 2 | L28: 2 | M28: 2 | N28: 3 | O28: 2 | P28: 8 | Q28: 4 | R28: 3 | S28: 3 | T28: 2 | U28: 1 | V28: 0 | W28: 0 | X28: . | Y28: .
G29: s vývojovými poruchami učení3) | J29: 0 | K29: 0 | L29: 0 | M29: 0 | N29: 1 | O29: 1 | P29: 0 | Q29: 0 | R29: 0 | S29: 1 | T29: 1 | U29: 1 | V29: 0 | W29: 4 | X29: . | Y29: .
G30: s vývojovými poruchami chování3) | J30: . | K30: . | L30: . | M30: . | N30: . | O30: . | P30: . | Q30: . | R30: . | S30: . | T30: . | U30: . | V30: . | W30: . | X30: . | Y30: .
G31: s lékařskou diagnózou autismus | J31: 0 | K31: 0 | L31: 0 | M31: 0 | N31: 0 | O31: 0 | P31: 0 | Q31: 0 | R31: 0 | S31: 0 | T31: 0 | U31: 0 | V31: 0 | W31: 0 | X31: . | Y31: .
D32: Komentáře: | Y32: Zdroj: databáze MŠMT
D33: 1) | E33: Data pouze za denní formu vzdělávání.
D34: 2) | E34: Speciální třídy včetně tříd ve školách zřízených pro žáky se SVP.
D35: 3) | E35: Od školního roku 2016/17 se sledují pouze žáci se "závažnými vadami řeči", se "závažnými poruchami chování" a "závažnými vývojovými poruchami učení".

Sheet B9.1.9
D4: Tab. B9.1.9: | H4: Individuální integrace do běžných skupin vyšších odborných škol – zdravotně
B5: 0 | D5: postižení a znevýhodnění studenti ve školním roce 2008/09 až 2018/19 – podle druhu postižení
D7: Druh postižení | J7: 2003/04 | K7: 2004/05 | L7: 2005/06 | M7: 2006/07 | N7: 2007/08 | O7: 2008/09 | P7: 2009/10 | Q7: 2010/11 | R7: 2011/12 | S7: 2012/13 | T7: 2013/14 | U7: 2014/15 | V7: 2015/16 | W7: 2016/17 | X7: 2017/18 | Y7: 2018/19
E12: Individuálně integrovaní studenti celkem1) | J12: 34 | K12: 38 | L12: 21 | M12: 26 | N12: 21 | O12: 25 | P12: 27 | Q12: 26 | R12: 24 | S12: 22 | T12: 31 | U12: 35 | V12: 34 | W12: 24 | X12: 26 | Y12: 17
E13: v tom | G13: mentálně postižení | J13: . | K13: . | L13: . | M13: . | N13: . | O13: . | P13: . | Q13: . | R13: . | S13: . | T13: . | U13: . | V13: . | W13: . | X13: . | Y13: .
G14: sluchově postižení | J14: 4 | K14: 4 | L14: 1 | M14: 4 | N14: 6 | O14: 6 | P14: 4 | Q14: 5 | R14: 7 | S14: 8 | T14: 8 | U14: 7 | V14: 5 | W14: 4 | X14: 2 | Y14: 3
G15: zrakově postižení | J15: . | K15: . | L15: . | M15: 3 | N15: 3 | O15: 4 | P15: 5 | Q15: 5 | R15: 3 | S15: 2 | T15: 4 | U15: 9 | V15: 14 | W15: 8 | X15: 5 | Y15: 2
G16: s vadami řeči2) | J16: 6 | K16: 5 | L16: 4 | M16: . | N16: . | O16: . | P16: . | Q16: . | R16: . | S16: . | T16: . | U16: . | V16: . | W16: . | X16: 1 | Y16: 0
G17: tělesně postižení | J17: 23 | K17: 21 | L17: 11 | M17: 9 | N17: 8 | O17: 7 | P17: 10 | Q17: 7 | R17: 6 | S17: 5 | T17: 8 | U17: 7 | V17: 7 | W17: 3 | X17: 6 | Y17: 4
G18: s více vadami | J18: 0 | K18: 1 | L18: 1 | M18: 1 | N18: 0 | O18: 0 | P18: 1 | Q18: 3 | R18: 4 | S18: 2 | T18: 2 | U18: 1 | V18: 1 | W18: 2 | X18: 3 | Y18: 0
G19: s vývojovými poruchami učení2) | J19: 1 | K19: 7 | L19: 4 | M19: 9 | N19: 4 | O19: 8 | P19: 7 | Q19: 6 | R19: 3 | S19: 2 | T19: 6 | U19: 8 | V19: 6 | W19: 6 | X19: 9 | Y19: 7
G20: s vývojovými poruchami chování2) | J20: . | K20: . | L20: . | M20: . | N20: . | O20: . | P20: . | Q20: . | R20: . | S20: . | T20: . | U20: . | V20: . | W20: . | X20: . | Y20: 0
G21: s lékařskou diagnózou autismus | J21: 0 | K21: 0 | L21: 0 | M21: 0 | N21: 0 | O21: 0 | P21: 0 | Q21: 0 | R21: 1 | S21: 3 | T21: 3 | U21: 3 | V21: 1 | W21: 1 | X21: 0 | Y21: 1
E22: Z toho ženy1) | J22: 19 | K22: 24 | L22: 11 | M22: 18 | N22: 16 | O22: 18 | P22: 18 | Q22: 19 | R22: 16 | S22: 13 | T22: 19 | U22: 19 | V22: 22 | W22: 14 | X22: 18 | Y22: 13
E23: v tom | G23: mentálně postižení | J23: . | K23: . | L23: . | M23: . | N23: . | O23: . | P23: . | Q23: . | R23: . | S23: . | T23: . | U23: . | V23: . | W23: . | X23: . | Y23: .
G24: sluchově postižení | J24: 3 | K24: 3 | L24: 1 | M24: 4 | N24: 6 | O24: 4 | P24: 3 | Q24: 3 | R24: 5 | S24: 5 | T24: 5 | U24: 6 | V24: 5 | W24: 3 | X24: 1 | Y24: 3
G25: zrakově postižení | J25: . | K25: . | L25: . | M25: 2 | N25: 3 | O25: 4 | P25: 4 | Q25: 4 | R25: 3 | S25: 2 | T25: 2 | U25: 4 | V25: 6 | W25: 3 | X25: 1 | Y25: 1
G26: s vadami řeči2) | J26: 0 | K26: 0 | L26: 1 | M26: . | N26: . | O26: . | P26: . | Q26: . | R26: . | S26: . | T26: . | U26: . | V26: . | W26: . | X26: 1 | Y26: 0
G27: tělesně postižení | J27: 16 | K27: 17 | L27: 6 | M27: 8 | N27: 5 | O27: 4 | P27: 6 | Q27: 6 | R27: 4 | S27: 3 | T27: 6 | U27: 5 | V27: 5 | W27: 3 | X27: 6 | Y27: 4
G28: s více vadami | J28: 0 | K28: 1 | L28: 1 | M28: 1 | N28: 0 | O28: 0 | P28: 1 | Q28: 2 | R28: 3 | S28: 2 | T28: 1 | U28: 1 | V28: 1 | W28: 1 | X28: 2 | Y28: 0
G29: s vývojovými poruchami učení2) | J29: 0 | K29: 3 | L29: 2 | M29: 3 | N29: 2 | O29: 6 | P29: 4 | Q29: 4 | R29: 0 | S29: 0 | T29: 4 | U29: 2 | V29: 5 | W29: 4 | X29: 7 | Y29: 5
G30: s vývojovými poruchami chování2) | J30: . | K30: . | L30: . | M30: . | N30: . | O30: . | P30: . | Q30: . | R30: . | S30: . | T30: . | U30: . | V30: . | W30: . | X30: . | Y30: .
G31: s lékařskou diagnózou autismus | J31: 0 | K31: 0 | L31: 0 | M31: 0 | N31: 0 | O31: 0 | P31: 0 | Q31: 0 | R31: 1 | S31: 1 | T31: 1 | U31: 1 | V31: 0 | W31: 0 | X31: 0 | Y31: 0
D32: Komentáře: | Y32: Zdroj: databáze MŠMT
D33: 1) | E33: Data pouze za denní formu vzdělávání.
D34: 2) | E34: Od školního roku 2016/17 se sledují pouze studenti se "závažnými vývojovými poruchami učení".

Sheet B9.1.10
D4: Tab. B9.1.10: | H4: Speciální skupiny vyšších odborných škol – zdravotně postižení
D5: a znevýhodnění studenti ve školním roce 2008/09 až 2018/19 – podle druhu postižení
D7: Druh postižení | J7: 2003/04 | K7: 2004/05 | L7: 2005/06 | M7: 2006/07 | N7: 2007/08 | O7: 2008/09 | P7: 2009/10 | Q7: 2010/11 | R7: 2011/12 | S7: 2012/13 | T7: 2013/14 | U7: 2014/15 | V7: 2015/16 | W7: 2016/17 | X7: 2017/18 | Y7: 2018/19
E12: Zdravotně postižení a znevýhodnění studenti celkem | J12: 0 | K12: 0 | L12: 0 | M12: 0 | N12: 0 | O12: 0 | P12: 0 | Q12: 0 | R12: 0 | S12: 0 | T12: 0 | U12: 0 | V12: 0 | W12: 0 | X12: 0 | Y12: 0
E13: v tom | G13: mentálně postižení | J13: . | K13: . | L13: . | M13: . | N13: . | O13: . | P13: . | Q13: . | R13: . | S13: . | T13: . | U13: . | V13: . | W13: . | X13: . | Y13: .
G14: sluchově postižení | J14: 0 | K14: 0 | L14: 0 | M14: 0 | N14: 0 | O14: 0 | P14: 0 | Q14: 0 | R14: 0 | S14: 0 | T14: 0 | U14: 0 | V14: 0 | W14: 0 | X14: 0 | Y14: 0
G15: zrakově postižení | J15: . | K15: . | L15: . | M15: . | N15: . | O15: . | P15: . | Q15: . | R15: . | S15: . | T15: . | U15: . | V15: . | W15: . | X15: . | Y15: .
G16: s vadami řeči | J16: 0 | K16: 0 | L16: 0 | M16: 0 | N16: 0 | O16: 0 | P16: 0 | Q16: 0 | R16: 0 | S16: 0 | T16: 0 | U16: 0 | V16: 0 | W16: 0 | X16: 0 | Y16: 0
G17: tělesně postižení | J17: 0 | K17: 0 | L17: 0 | M17: 0 | N17: 0 | O17: 0 | P17: 0 | Q17: 0 | R17: 0 | S17: 0 | T17: 0 | U17: 0 | V17: 0 | W17: 0 | X17: 0 | Y17: 0
G18: s více vadami | J18: 0 | K18: 0 | L18: 0 | M18: 0 | N18: 0 | O18: 0 | P18: 0 | Q18: 0 | R18: 0 | S18: 0 | T18: 0 | U18: 0 | V18: 0 | W18: 0 | X18: 0 | Y18: 0
G19: s vývojovými poruchami učení | J19: 0 | K19: 0 | L19: 0 | M19: 0 | N19: 0 | O19: 0 | P19: 0 | Q19: 0 | R19: 0 | S19: 0 | T19: 0 | U19: 0 | V19: 0 | W19: 0 | X19: 0 | Y19: 0
G20: s vývojovými poruchami chování | J20: . | K20: . | L20: . | M20: . | N20: . | O20: . | P20: . | Q20: . | R20: . | S20: . | T20: . | U20: . | V20: . | W20: . | X20: . | Y20: .
G21: s lékařskou diagnózou autismus | J21: 0 | K21: 0 | L21: 0 | M21: 0 | N21: 0 | O21: 0 | P21: 0 | Q21: 0 | R21: 0 | S21: 0 | T21: 0 | U21: 0 | V21: 0 | W21: 0 | X21: 0 | Y21: 0
E22: Z toho ženy | J22: 0 | K22: 0 | L22: 0 | M22: 0 | N22: 0 | O22: 0 | P22: 0 | Q22: 0 | R22: 0 | S22: 0 | T22: 0 | U22: 0 | V22: 0 | W22: 0 | X22: 0 | Y22: 0
E23: v tom | G23: mentálně postižení | J23: . | K23: . | L23: . | M23: . | N23: . | O23: . | P23: . | Q23: . | R23: . | S23: . | T23: . | U23: . | V23: . | W23: . | X23: . | Y23: .
G24: sluchově postižení | J24: 0 | K24: 0 | L24: 0 | M24: 0 | N24: 0 | O24: 0 | P24: 0 | Q24: 0 | R24: 0 | S24: 0 | T24: 0 | U24: 0 | V24: 0 | W24: 0 | X24: 0 | Y24: 0
G25: zrakově postižení | J25: . | K25: . | L25: . | M25: . | N25: . | O25: . | P25: . | Q25: . | R25: . | S25: . | T25: . | U25: . | V25: . | W25: . | X25: . | Y25: .
G26: s vadami řeči | J26: 0 | K26: 0 | L26: 0 | M26: 0 | N26: 0 | O26: 0 | P26: 0 | Q26: 0 | R26: 0 | S26: 0 | T26: 0 | U26: 0 | V26: 0 | W26: 0 | X26: 0 | Y26: 0
G27: tělesně postižení | J27: 0 | K27: 0 | L27: 0 | M27: 0 | N27: 0 | O27: 0 | P27: 0 | Q27: 0 | R27: 0 | S27: 0 | T27: 0 | U27: 0 | V27: 0 | W27: 0 | X27: 0 | Y27: 0
G28: s více vadami | J28: 0 | K28: 0 | L28: 0 | M28: 0 | N28: 0 | O28: 0 | P28: 0 | Q28: 0 | R28: 0 | S28: 0 | T28: 0 | U28: 0 | V28: 0 | W28: 0 | X28: 0 | Y28: 0
G29: s vývojovými poruchami učení | J29: 0 | K29: 0 | L29: 0 | M29: 0 | N29: 0 | O29: 0 | P29: 0 | Q29: 0 | R29: 0 | S29: 0 | T29: 0 | U29: 0 | V29: 0 | W29: 0 | X29: 0 | Y29: 0
G30: s vývojovými poruchami chování | J30: . | K30: . | L30: . | M30: . | N30: . | O30: . | P30: . | Q30: . | R30: . | S30: . | T30: . | U30: . | V30: . | W30: . | X30: . | Y30: .
G31: s lékařskou diagnózou autismus | J31: 0 | K31: 0 | L31: 0 | M31: 0 | N31: 0 | O31: 0 | P31: 0 | Q31: 0 | R31: 0 | S31: 0 | T31: 0 | U31: 0 | V31: 0 | W31: 0 | X31: 0 | Y31: 0
Y32: Zdroj: databáze MŠMT

Sheet B9.2.1
D4: Tab. B9.2.1: | H4: Základní školy – školy, žáci učící se cizí jazyky
B5: 0 | D5: ve školním roce 2008/09 až 2018/19
J7: 2003/04 | K7: 2004/05 | L7: 2005/06 | M7: 2006/07 | N7: 2007/08 | O7: 2008/09 | P7: 2009/10 | Q7: 2010/11 | R7: 2011/12 | S7: 2012/13 | T7: 2013/14 | U7: 2014/15 | V7: 2015/16 | W7: 2016/17 | X7: 2017/18 | Y7: 2018/19
J11: 1) | K11: 1),3)
E12: Školy celkem | J12: 695803 | K12: . | L12: 3777 | M12: 3893 | N12: 4039 | O12: 4041 | P12: 4069 | Q12: 4072 | R12: 4044 | S12: 4034 | T12: 4041 | U12: 4051 | V12: 4063 | W12: 4090 | X12: 4096 | Y12: 4125
E13: z toho, kde se žáci učí | G13: angličtinu | J13: 492927 | K13: . | L13: 3509 | M13: 3813 | N13: 3973 | O13: 3980 | P13: 4017 | Q13: 4025 | R13: 4006 | S13: 4002 | T13: 4010 | U13: 4021 | V13: 4035 | W13: 4065 | X13: 4079 | Y13: 4109
G14: francouzštinu | J14: 7093 | K14: . | L14: 190 | M14: 190 | N14: 197 | O14: 216 | P14: 221 | Q14: 230 | R14: 210 | S14: 193 | T14: 200 | U14: 212 | V14: 212 | W14: 212 | X14: 196 | Y14: 197
G15: němčinu | J15: 218268 | K15: . | L15: 2422 | M15: 2299 | N15: 2163 | O15: 2170 | P15: 2173 | Q15: 2116 | R15: 2011 | S15: 1973 | T15: 2178 | U15: 2208 | V15: 2223 | W15: 2255 | X15: 2285 | Y15: 2336
G16: ruštinu | J16: 2896 | K16: . | L16: 228 | M16: 271 | N16: 324 | O16: 489 | P16: 600 | Q16: 657 | R16: 650 | S16: 649 | T16: 891 | U16: 958 | V16: 978 | W16: 986 | X16: 998 | Y16: 1010
G17: španělštinu | J17: 725 | K17: . | L17: 30 | M17: 29 | N17: 33 | O17: 40 | P17: 56 | Q17: 66 | R17: 69 | S17: 66 | T17: 94 | U17: 106 | V17: 115 | W17: 125 | X17: 137 | Y17: 153
G18: italštinu | J18: 43 | K18: . | L18: 3 | M18: 5 | N18: 7 | O18: 10 | P18: 8 | Q18: 8 | R18: 7 | S18: 5 | T18: 4 | U18: 4 | V18: 7 | W18: 7 | X18: 7 | Y18: 9
G19: latinu | J19: 0 | K19: . | L19: . | M19: . | N19: . | O19: . | P19: . | Q19: . | R19: . | S19: . | T19: . | U19: . | V19: . | W19: . | X19: . | Y19: .
G20: klasickou řečtinu | J20: 0 | K20: . | L20: . | M20: . | N20: . | O20: . | P20: . | Q20: . | R20: . | S20: . | T20: . | U20: . | V20: . | W20: . | X20: . | Y20: .
G21: jiný evropský jazyk | J21: 205 | K21: . | L21: 1 | M21: 1 | N21: 2 | O21: 3 | P21: 4 | Q21: 2 | R21: 3 | S21: 2 | T21: 4 | U21: 4 | V21: 6 | W21: 4 | X21: 11 | Y21: 15
G22: jiný cizí jazyk | J22: 113 | K22: . | L22: 1 | M22: 1 | N22: 1 | O22: 1 | P22: 1 | Q22: 2 | R22: 0 | S22: 0 | T22: 0 | U22: 1 | V22: 3 | W22: 2 | X22: 2 | Y22: 3
E23: Žáci celkem1) | J23: 695803 | K23: 673001 | L23: 640651 | M23: 684799 | N23: 678263 | O23: 672936 | P23: 657480 | Q23: 652516 | R23: 645079 | S23: 660748 | T23: 680871 | U23: 703840 | V23: 731324 | W23: 765485 | X23: 790782 | Y23: 813350
E24: z toho žáci učící se | G24: angličtinu | J24: 492927 | K24: 497635 | L24: 503215 | M24: 577936 | N24: 599208 | O24: 616632 | P24: 618147 | Q24: 628678 | R24: 635169 | S24: 652632 | T24: 674514 | U24: 698322 | V24: 725896 | W24: 760106 | X24: 785767 | Y24: 808179
G25: francouzštinu | J25: 7093 | K25: 9079 | L25: 7250 | M25: 7303 | N25: 7376 | O25: 7369 | P25: 6897 | Q25: 7428 | R25: 7180 | S25: 6319 | T25: 6583 | U25: 7181 | V25: 6862 | W25: 6416 | X25: 6145 | Y25: 6631
G26: němčinu | J26: 218268 | K26: 187484 | L26: 166808 | M26: 148187 | N26: 127902 | O26: 117721 | P26: 111196 | Q26: 113849 | R26: 106761 | S26: 106364 | T26: 140285 | U26: 158575 | V26: 163102 | W26: 169330 | X26: 176504 | Y26: 186080
G27: ruštinu | J27: 2896 | K27: 3968 | L27: 5657 | M27: 7342 | N27: 9084 | O27: 13763 | P27: 19378 | Q27: 24955 | R27: 25512 | S27: 26194 | T27: 41538 | U27: 51689 | V27: 50943 | W27: 52000 | X27: 52002 | Y27: 54498
G28: španělštinu | J28: 725 | K28: 1036 | L28: 1235 | M28: 1256 | N28: 1396 | O28: 1538 | P28: 1805 | Q28: 2316 | R28: 2652 | S28: 2698 | T28: 3884 | U28: 5083 | V28: 5268 | W28: 5842 | X28: 6491 | Y28: 7617
G29: italštinu | J29: 43 | K29: 49 | L29: 44 | M29: 79 | N29: 132 | O29: 156 | P29: 169 | Q29: 182 | R29: 152 | S29: 147 | T29: 129 | U29: 145 | V29: 172 | W29: 238 | X29: 293 | Y29: 346
G30: latinu | J30: 0 | K30: 0 | L30: . | M30: . | N30: . | O30: . | P30: . | Q30: . | R30: . | S30: . | T30: . | U30: . | V30: . | W30: 0 | X30: . | Y30: 0
G31: klasickou řečtinu | J31: 0 | K31: 0 | L31: . | M31: . | N31: . | O31: . | P31: . | Q31: . | R31: . | S31: . | T31: . | U31: . | V31: . | W31: 0 | X31: . | Y31: 0
G32: jiný evropský jazyk | J32: 205 | K32: 194 | L32: 29 | M32: 15 | N32: 18 | O32: 32 | P32: 58 | Q32: 51 | R32: 140 | S32: 64 | T32: 99 | U32: 105 | V32: 121 | W32: 111 | X32: 167 | Y32: 424
G33: jiný cizí jazyk | J33: 113 | K33: 46 | L33: 48 | M33: 35 | N33: 55 | O33: 57 | P33: 55 | Q33: 61 | R33: 4 | S33: 0 | T33: 0 | U33: 16 | V33: 58 | W33: 67 | X33: 61 | Y33: 67
E34: Průměrný počet jazyků na žáka ZŠ | J34: 0.723698581 | K34: 0.7300029326 | L34: 0.746568475 | M34: 0.8467107733 | N34: 0.8820021708 | O34: 0.9280074508 | P34: 0.9537370714 | Q34: 0.9848433031 | R34: 0.9785161117 | S34: 0.9832514388 | T34: 1.047577853 | U34: 1.078417163 | V34: 1.081989114 | W34: 1.097024017 | X34: 1.109406246 | Y34: 1.130630611
E35: Průměrný počet jazyků na žáka učícího se cizí jazyk | J35: 1.038038065 | K35: 1.039361011 | L35: 1.068110406 | M35: 1.083753043 | N35: 1.0986461 | O35: 1.125319495 | P35: 1.152438097 | Q35: 1.191572314 | R35: 1.205387247 | S35: 1.202301029 | T35: 1.273415963 | U35: 1.308700841 | V35: 1.302325645 | W35: 1.298666858 | X35: 1.299258203 | Y35: 1.307975656
E36: Z toho první jazyk | J36: 695803 | K36: . | L36: . | M36: . | N36: . | O36: . | P36: . | Q36: . | R36: . | S36: . | T36: 680871 | U36: 703840 | V36: 731324 | W36: 765485 | X36: 790782 | Y36: 813350
E37: z toho cizí jazyk jako první jazyk | G37: angličtinu | J37: 492927 | K37: . | L37: . | M37: . | N37: . | O37: . | P37: . | Q37: . | R37: . | S37: . | T37: 670265 | U37: 694008 | V37: 722429 | W37: 757491 | X37: 783130 | Y37: 805649
G38: francouzštinu | J38: 7093 | K38: . | L38: . | M38: . | N38: . | O38: . | P38: . | Q38: . | R38: . | S38: . | T38: 189 | U38: 255 | V38: 222 | W38: 200 | X38: 216 | Y38: 263
G39: němčinu | J39: 218268 | K39: . | L39: . | M39: . | N39: . | O39: . | P39: . | Q39: . | R39: . | S39: . | T39: 10179 | U39: 9280 | V39: 8256 | W39: 7582 | X39: 7253 | Y39: 7288
G40: ruštinu | J40: 2896 | K40: . | L40: . | M40: . | N40: . | O40: . | P40: . | Q40: . | R40: . | S40: . | T40: 206 | U40: 270 | V40: 385 | W40: 169 | X40: 108 | Y40: 58
G41: španělštinu | J41: 725 | K41: . | L41: . | M41: . | N41: . | O41: . | P41: . | Q41: . | R41: . | S41: . | T41: 32 | U41: 27 | V41: 14 | W41: 0 | X41: 6 | Y41: 0
G42: italštinu | J42: 43 | K42: . | L42: . | M42: . | N42: . | O42: . | P42: . | Q42: . | R42: . | S42: . | T42: 0 | U42: 0 | V42: 18 | W42: 43 | X42: 69 | Y42: 92
G43: latinu | J43: 0 | K43: . | L43: . | M43: . | N43: . | O43: . | P43: . | Q43: . | R43: . | S43: . | T43: . | U43: . | V43: . | W43: . | Y43: .
G44: klasickou řečtinu | J44: 0 | K44: . | L44: . | M44: . | N44: . | O44: . | P44: . | Q44: . | R44: . | S44: . | T44: . | U44: . | V44: . | W44: . | Y44: .
G45: jiný evropský jazyk | J45: 205 | K45: . | L45: . | M45: . | N45: . | O45: . | P45: . | Q45: . | R45: . | S45: . | T45: 0 | U45: 0 | V45: 0 | W45: 0 | Y45: 0
G46: jiný cizí jazyk | J46: 113 | K46: . | L46: . | M46: . | N46: . | O46: . | P46: . | Q46: . | R46: . | S46: . | T46: 0 | U46: 0 | V46: 0 | W46: 0 | Y46: 0
D47: Komentáře: | Y47: Zdroj: databáze MŠMT
D48: 1) | E48: Každý žák je započítán pouze jednou bez ohledu na to, kolika cizím jazykům se učí.

Sheet B9.2.2
D4: Tab. B9.2.2: | H4: Střední školy, denní forma vzdělávání – školy, žáci učící se cizí jazyky
D5: ve školním roce 2008/09 až 2018/19
D7: Źáci v denní formě vzdělávání | J7: 2003/04 | K7: 2004/05 | L7: 2005/06 | M7: 2006/07 | N7: 2007/08 | O7: 2008/09 | P7: 2009/10 | Q7: 2010/11 | R7: 2011/12 | S7: 2012/13 | T7: 2013/14 | U7: 2014/15 | V7: 2015/16 | W7: 2016/17 | X7: 2017/18 | Y7: 2018/19
E11: Školy celkem | J11: 516704 | K11: . | L11: . | M11: 1370 | N11: 1343 | O11: 1337 | P11: 1329 | Q11: 1320 | R11: 1291 | S11: 1290 | T11: 1277 | U11: 1262 | V11: 1253 | W11: 1253 | X11: 1254 | Y11: 1240
E12: z toho, kde se žáci učí | G12: angličtinu | J12: 373929 | K12: . | L12: . | M12: 1351 | N12: 1323 | O12: 1321 | P12: 1316 | Q12: 1312 | R12: 1283 | S12: 1274 | T12: 1263 | U12: 1248 | V12: 1239 | W12: 1241 | X12: 1242 | Y12: 1227
G13: francouzštinu | J13: 33383 | K13: . | L13: . | M13: 458 | N13: 452 | O13: 452 | P13: 447 | Q13: 429 | R13: 422 | S13: 401 | T13: 385 | U13: 377 | V13: 367 | W13: 349 | X13: 330 | Y13: 312
G14: němčinu | J14: 307596 | K14: . | L14: . | M14: 1315 | N14: 1291 | O14: 1274 | P14: 1268 | Q14: 1248 | R14: 1219 | S14: 1167 | T14: 1137 | U14: 1083 | V14: 1034 | W14: 1018 | X14: 995 | Y14: 964
G15: ruštinu | J15: 10840 | K15: . | L15: . | M15: 346 | N15: 374 | O15: 406 | P15: 433 | Q15: 453 | R15: 470 | S15: 466 | T15: 472 | U15: 479 | V15: 489 | W15: 494 | X15: 496 | Y15: 494
G16: španělštinu | J16: 11334 | K16: . | L16: . | M16: 211 | N16: 221 | O16: 238 | P16: 248 | Q16: 243 | R16: 250 | S16: 239 | T16: 245 | U16: 246 | V16: 249 | W16: 250 | X16: 252 | Y16: 256
G17: italštinu | J17: 1234 | K17: . | L17: . | M17: 34 | N17: 32 | O17: 33 | P17: 32 | Q17: 25 | R17: 23 | S17: 14 | T17: 14 | U17: 16 | V17: 12 | W17: 14 | X17: 13 | Y17: 14
G18: latinu | J18: 15266 | K18: . | L18: . | M18: 193 | N18: 210 | O18: 210 | P18: 208 | Q18: 174 | R18: 161 | S18: 153 | T18: 160 | U18: 142 | V18: 148 | W18: 149 | X18: 142 | Y18: 140
G19: klasickou řečtinu | J19: 112 | K19: . | L19: . | M19: 1 | N19: 2 | O19: 1 | P19: 1 | Q19: 1 | R19: 0 | S19: 0 | T19: 0 | U19: 0 | V19: 1 | W19: 1 | X19: 0 | Y19: 0
G20: jiný evropský jazyk | J20: 121 | K20: . | L20: . | M20: 3 | N20: 2 | O20: 1 | P20: 1 | Q20: 2 | R20: 1 | S20: 2 | T20: 3 | U20: 1 | V20: 1 | W20: 2 | X20: 4 | Y20: 3
G21: jiný cizí jazyk | J21: 178 | K21: . | L21: . | M21: 10 | N21: 9 | O21: 8 | P21: 6 | Q21: 7 | R21: 7 | S21: 5 | T21: 5 | U21: 3 | V21: 4 | W21: 6 | X21: 6 | Y21: 2
E22: Žáci celkem1) | J22: 516704 | K22: 521079 | L22: 521836 | M22: 522699 | N22: 514403 | O22: 508578 | P22: 500803 | Q22: 480523 | R22: 454977 | S22: 429840 | T22: 410716 | U22: 399748 | V22: 392554 | W22: 391426 | X22: 390479 | Y22: 392033
E23: z toho žáci učící se | G23: angličtinu | J23: 373929 | K23: 386369 | L23: 399507 | M23: 413621 | N23: 421366 | O23: 430434 | P23: 436720 | Q23: 430788 | R23: 418369 | S23: 403518 | T23: 392641 | U23: 386945 | V23: 381614 | W23: 382012 | X23: 381899 | Y23: 384252
G24: francouzštinu | J24: 33383 | K24: 38455 | L24: 40370 | M24: 42977 | N24: 43418 | O24: 43797 | P24: 41878 | Q24: 38438 | R24: 34532 | S24: 30422 | T24: 27224 | U24: 24916 | V24: 22967 | W24: 21625 | X24: 20148 | Y24: 18921
G25: němčinu | J25: 307596 | K25: 298154 | L25: 287903 | M25: 276823 | N25: 261192 | O25: 246404 | P25: 237938 | Q25: 224396 | R25: 207169 | S25: 185690 | T25: 169033 | U25: 160891 | V25: 158311 | W25: 160101 | X25: 160940 | Y25: 161244
G26: ruštinu | J26: 10840 | K26: 12477 | L26: 14329 | M26: 16191 | N26: 18525 | O26: 21867 | P26: 26688 | Q26: 29181 | R26: 29836 | S26: 29468 | T26: 29316 | U26: 30338 | V26: 30736 | W26: 30924 | X26: 31334 | Y26: 29996
G27: španělštinu | J27: 11334 | K27: 12683 | L27: 14904 | M27: 17297 | N27: 19772 | O27: 22181 | P27: 24365 | Q27: 24638 | R27: 24709 | S27: 23752 | T27: 22778 | U27: 22413 | V27: 22213 | W27: 22118 | X27: 22896 | Y27: 24042
G28: italštinu | J28: 1234 | K28: 1331 | L28: 1358 | M28: 1499 | N28: 1257 | O28: 1171 | P28: 1091 | Q28: 792 | R28: 668 | S28: 495 | T28: 437 | U28: 443 | V28: 452 | W28: 474 | X28: 454 | Y28: 547
G29: latinu | J29: 15266 | K29: 13448 | L29: 12570 | M29: 12762 | N29: 13753 | O29: 13682 | P29: 13063 | Q29: 10231 | R29: 9423 | S29: 8577 | T29: 8498 | U29: 7617 | V29: 7760 | W29: 7860 | X29: 7501 | Y29: 7100
G30: klasickou řečtinu | J30: 112 | K30: 113 | L30: 112 | M30: 117 | N30: 99 | O30: 114 | P30: 4 | Q30: 5 | R30: 0 | S30: 0 | T30: 0 | U30: 0 | V30: 2 | W30: 2 | X30: 0 | Y30: 0
G31: jiný evropský jazyk | J31: 121 | K31: 116 | L31: 112 | M31: 76 | N31: 60 | O31: 46 | P31: 2 | Q31: 23 | R31: 2 | S31: 4 | T31: 8 | U31: 8 | V31: 9 | W31: 30 | X31: 75 | Y31: 116
G32: jiný cizí jazyk | J32: 178 | K32: 290 | L32: 304 | M32: 316 | N32: 278 | O32: 232 | P32: 193 | Q32: 336 | R32: 185 | S32: 224 | T32: 191 | U32: 140 | V32: 163 | W32: 164 | X32: 181 | Y32: 142
E33: Průměrný počet jazyků na žáka SŠ | J33: 1.388730184 | K33: 1.404441239 | L33: 1.423303636 | M33: 1.442824446 | N33: 1.460313893 | O33: 1.479812919 | P33: 1.505274627 | Q33: 1.526921359 | R33: 1.541187676 | S33: 1.537346834 | T33: 1.533811633 | U33: 1.536149923 | V33: 1.538865647 | W33: 1.546606449 | X33: 1.551861207 | Y33: 1.550561075
E34: Průměrný počet jazyků na žáka učícího se cizí jazyk | J34: 1.459235849 | K34: 1.465106059 | L34: 1.478374432 | M34: 1.495466798 | N34: 1.515776541 | O34: 1.533546477 | P34: 1.561376429 | Q34: 1.579171028 | R34: 1.593251967 | S34: 1.586985855 | T34: 1.582908871 | U34: 1.585276224 | V34: 1.590168486 | W34: 1.597517794 | X34: 1.601694329 | Y34: 1.597722641
D35: Komentáře: | Y35: Zdroj: databáze MŠMT
D36: 1) | E36: Každý žák je započítán pouze jednou bez ohledu na to, kolika cizím jazykům se učí.

Sheet B9.2.3
D4: Tab. B9.2.3: | H4: Konzervatoře, denní forma vzdělávání –
D5: žáci učící se cizí jazyky ve školním roce 2008/09 až 2018/19
D7: Žáci v denní formě vzdělávání | J7: 2003/04 | K7: 2004/05 | L7: 2005/06 | M7: 2006/07 | N7: 2007/08 | O7: 2008/09 | P7: 2009/10 | Q7: 2010/11 | R7: 2011/12 | S7: 2012/13 | T7: 2013/14 | U7: 2014/15 | V7: 2015/16 | W7: 2016/17 | X7: 2017/18 | Y7: 2018/19
E12: Školy celkem | J12: 3284 | K12: 17 | L12: 17 | M12: 18 | N12: 19 | O12: 18 | P12: 17 | Q12: 18 | R12: 18 | S12: 18 | T12: 18 | U12: 18 | V12: 18 | W12: 18 | X12: 18 | Y12: 18
E13: z toho, kde se žáci učí | G13: angličtinu | J13: 2499 | K13: 17 | L13: 17 | M13: 18 | N13: 19 | O13: 18 | P13: 17 | Q13: 18 | R13: 18 | S13: 18 | T13: 18 | U13: 18 | V13: 18 | W13: 18 | X13: 18 | Y13: 18
G14: francouzštinu | J14: 375 | K14: 7 | L14: 6 | M14: 6 | N14: 6 | O14: 6 | P14: 6 | Q14: 6 | R14: 5 | S14: 5 | T14: 4 | U14: 5 | V14: 6 | W14: 7 | X14: 8 | Y14: 7
G15: němčinu | J15: 774 | K15: 10 | L15: 10 | M15: 11 | N15: 11 | O15: 11 | P15: 11 | Q15: 10 | R15: 9 | S15: 10 | T15: 11 | U15: 12 | V15: 12 | W15: 12 | X15: 13 | Y15: 12
G16: ruštinu | J16: 0 | K16: 0 | L16: 0 | M16: 0 | N16: 0 | O16: 0 | P16: 0 | Q16: 0 | R16: 0 | S16: 0 | T16: 1 | U16: 1 | V16: 1 | W16: 2 | X16: 1 | Y16: 2
G17: španělštinu | J17: 33 | K17: 1 | L17: 1 | M17: 1 | N17: 1 | O17: 1 | P17: 1 | Q17: 1 | R17: 1 | S17: 1 | T17: 2 | U17: 2 | V17: 2 | W17: 2 | X17: 2 | Y17: 2
G18: italštinu | J18: 222 | K18: 7 | L18: 7 | M18: 8 | N18: 9 | O18: 9 | P18: 9 | Q18: 9 | R18: 9 | S18: 9 | T18: 10 | U18: 10 | V18: 9 | W18: 10 | X18: 10 | Y18: 10
G19: latinu | J19: 61 | K19: 1 | L19: 1 | M19: 3 | N19: 2 | O19: 2 | P19: 2 | Q19: 2 | R19: 2 | S19: 2 | T19: 2 | U19: 3 | V19: 3 | W19: 2 | X19: 2 | Y19: 2
G20: klasickou řečtinu | J20: 0 | K20: 0 | L20: 0 | M20: 0 | N20: 0 | O20: 0 | P20: 0 | Q20: 0 | R20: 0 | S20: 0 | T20: 0 | U20: 0 | V20: 0 | W20: 0 | X20: 0 | Y20: .
G21: jiný evropský jazyk | J21: 0 | K21: 0 | L21: 0 | M21: 0 | N21: 0 | O21: 0 | P21: 0 | Q21: 0 | R21: 0 | S21: 0 | T21: 0 | U21: 0 | V21: 1 | W21: 0 | X21: 0 | Y21: 0
G22: jiný cizí jazyk | J22: 0 | K22: 0 | L22: 0 | M22: 0 | N22: 0 | O22: 0 | P22: 0 | Q22: 0 | R22: 0 | S22: 0 | T22: 0 | U22: 0 | V22: 0 | W22: 0 | X22: 0 | Y22: 0
E23: Žáci celkem1) | J23: 3284 | K23: 3260 | L23: 3225 | M23: 3231 | N23: 3231 | O23: 3156 | P23: 3177 | Q23: 2929 | R23: 3114 | S23: 3198 | T23: 3225 | U23: 3293 | V23: 3227 | W23: 3326 | X23: 3405 | Y23: 3262
E24: z toho žáci učící se | G24: angličtinu | J24: 2499 | K24: 2539 | L24: 2554 | M24: 2576 | N24: 2643 | O24: 2659 | P24: 2789 | Q24: 2596 | R24: 2813 | S24: 2931 | T24: 3010 | U24: 3080 | V24: 3038 | W24: 3169 | X24: 3263 | Y24: 3108
G25: francouzštinu | J25: 375 | K25: 511 | L25: 386 | M25: 391 | N25: 310 | O25: 290 | P25: 298 | Q25: 218 | R25: 178 | S25: 177 | T25: 216 | U25: 224 | V25: 316 | W25: 414 | X25: 455 | Y25: 388
G26: němčinu | J26: 774 | K26: 584 | L26: 616 | M26: 574 | N26: 488 | O26: 428 | P26: 370 | Q26: 525 | R26: 288 | S26: 349 | T26: 414 | U26: 616 | V26: 667 | W26: 702 | X26: 742 | Y26: 747
G27: ruštinu | J27: 0 | K27: 0 | L27: 0 | M27: 0 | N27: 0 | O27: 0 | P27: 0 | Q27: 0 | R27: 0 | S27: 0 | T27: 1 | U27: 2 | V27: 1 | W27: 14 | X27: 11 | Y27: 25
G28: španělštinu | J28: 33 | K28: 40 | L28: 41 | M28: 40 | N28: 54 | O28: 95 | P28: 83 | Q28: 91 | R28: 33 | S28: 44 | T28: 47 | U28: 56 | V28: 78 | W28: 74 | X28: 67 | Y28: 77
G29: italštinu | J29: 222 | K29: 239 | L29: 238 | M29: 279 | N29: 288 | O29: 293 | P29: 258 | Q29: 240 | R29: 300 | S29: 282 | T29: 313 | U29: 359 | V29: 382 | W29: 375 | X29: 401 | Y29: 423
G30: latinu | J30: 61 | K30: 60 | L30: 46 | M30: 59 | N30: 56 | O30: 57 | P30: 61 | Q30: 58 | R30: 58 | S30: 60 | T30: 57 | U30: 42 | V30: 30 | W30: 29 | X30: 22 | Y30: 29
G31: klasickou řečtinu | J31: 0 | K31: 0 | L31: 0 | M31: 0 | N31: 0 | O31: 0 | P31: 0 | Q31: 0 | R31: 0 | S31: 0 | T31: 0 | U31: 0 | V31: 0 | W31: 0 | X31: 0 | Y31: 0
G32: jiný evropský jazyk | J32: 0 | K32: 0 | L32: 0 | M32: 0 | N32: 0 | O32: 0 | P32: 0 | Q32: 0 | R32: 0 | S32: 0 | T32: 0 | U32: 0 | V32: 1 | W32: 0 | X32: 0 | Y32: 0
G33: jiný cizí jazyk | J33: 0 | K33: 0 | L33: 0 | M33: 0 | N33: 0 | O33: 0 | P33: 0 | Q33: 0 | R33: 0 | S33: 0 | T33: 0 | U33: 0 | V33: 0 | W33: 0 | X33: 0 | Y33: 0
E34: Průměrný počet jazyků na žáka konzervatoře | J34: 1.175912192 | K34: 1.180332739 | L34: 1.164067187 | M34: 1.167759237 | N34: 1.1254764 | O34: 1.150165513 | P34: 1.191785053 | Q34: 1.11316811 | R34: 1.109113379 | S34: 1.131958763 | T34: 1.187244002 | U34: 1.264145497 | V34: 1.318434122 | W34: 1.364857143 | X34: 1.419456366 | Y34: 1.34407397
E35: Průměrný počet jazyků na žáka učícího se cizí jazyk | J35: 1.207064555 | K35: 1.218711656 | L35: 1.203410853 | M35: 1.212937171 | N35: 1.188177035 | O35: 1.211026616 | P35: 1.21466793 | Q35: 1.272789348 | R35: 1.178548491 | S35: 1.201688555 | T35: 1.258294574 | U35: 1.329790465 | V35: 1.39851255 | W35: 1.436259771 | X35: 1.456975037 | Y35: 1.470570202
D36: Komentáře: | Y36: Zdroj: databáze MŠMT
D37: 1) | E37: Každý žák je započítán pouze jednou bez ohledu na to, kolika cizím jazykům se učí.

Sheet B9.2.4
D4: Tab. B9.2.4: | H4: Vyšší odborné školy, denní forma vzdělávání –
D5: studenti učící se cizí jazyky ve školním roce 2008/09 až 2018/19
D7: Studenti v denní formě vzdělávání | J7: 2003/04 | K7: 2004/05 | L7: 2005/06 | M7: 2006/07 | N7: 2007/08 | O7: 2008/09 | P7: 2009/10 | Q7: 2010/11 | R7: 2011/12 | S7: 2012/13 | T7: 2013/14 | U7: 2014/15 | V7: 2015/16 | W7: 2016/17 | X7: 2017/18 | Y7: 2018/19
E12: Školy celkem | J12: 25502 | K12: 170 | L12: 171 | M12: 170 | N12: 170 | O12: 174 | P12: 173 | Q12: 172 | R12: 170 | S12: 166 | T12: 168 | U12: 165 | V12: 161 | W12: 157 | X12: 155 | Y12: 153
E13: z toho, kde se žáci učí | G13: angličtinu | J13: 19447 | K13: 170 | L13: 171 | M13: 170 | N13: 170 | O13: 174 | P13: 173 | Q13: 172 | R13: 170 | S13: 166 | T13: 168 | U13: 165 | V13: 161 | W13: 157 | X13: 155 | Y13: 153
G14: francouzštinu | J14: 1048 | K14: 31 | L14: 29 | M14: 28 | N14: 24 | O14: 24 | P14: 22 | Q14: 20 | R14: 17 | S14: 14 | T14: 15 | U14: 14 | V14: 12 | W14: 10 | X14: 10 | Y14: 9
G15: němčinu | J15: 14764 | K15: 151 | L15: 158 | M15: 155 | N15: 156 | O15: 158 | P15: 152 | Q15: 151 | R15: 147 | S15: 143 | T15: 141 | U15: 142 | V15: 132 | W15: 120 | X15: 104 | Y15: 86
G16: ruštinu | J16: 631 | K16: 27 | L16: 30 | M16: 28 | N16: 30 | O16: 35 | P16: 38 | Q16: 37 | R16: 35 | S16: 38 | T16: 41 | U16: 39 | V16: 34 | W16: 31 | X16: 26 | Y16: 25
G17: španělštinu | J17: 1022 | K17: 15 | L17: 13 | M17: 16 | N17: 15 | O17: 17 | P17: 17 | Q17: 16 | R17: 15 | S17: 19 | T17: 16 | U17: 15 | V17: 14 | W17: 13 | X17: 15 | Y17: 14
G18: italštinu | J18: 156 | K18: 7 | L18: 7 | M18: 8 | N18: 6 | O18: 4 | P18: 2 | Q18: 2 | R18: 3 | S18: 3 | T18: 5 | U18: 3 | V18: 3 | W18: 3 | X18: 2 | Y18: 1
G19: latinu | J19: 2566 | K19: 24 | L19: 25 | M19: 25 | N19: 25 | O19: 28 | P19: 29 | Q19: 27 | R19: 29 | S19: 25 | T19: 26 | U19: 23 | V19: 25 | W19: 22 | X19: 22 | Y19: 20
G20: klasickou řečtinu | J20: 0 | K20: 0 | L20: . | M20: . | N20: . | O20: . | P20: . | Q20: . | R20: . | S20: . | T20: . | U20: . | V20: . | W20: . | X20: . | Y20: .
G21: jiný evropský jazyk | J21: 113 | K21: 3 | L21: 4 | M21: 2 | N21: 3 | O21: 3 | P21: 2 | Q21: 4 | R21: 3 | S21: 3 | T21: 4 | U21: 3 | V21: 3 | W21: 2 | X21: 2 | Y21: 1
G22: jiný cizí jazyk | J22: 78 | K22: 4 | L22: 3 | M22: 3 | N22: 4 | O22: 3 | P22: 3 | Q22: 4 | R22: 5 | S22: 3 | T22: 5 | U22: 5 | V22: 4 | W22: 3 | X22: 3 | Y22: 2
E23: Studenti celkem1) | J23: 25502 | K23: 25033 | L23: 23881 | M23: 22691 | N23: 22205 | O23: 20759 | P23: 20499 | Q23: 21128 | R23: 20688 | S23: 20335 | T23: 19734 | U23: 18881 | V23: 16970 | W23: 14701 | X23: 12781 | Y23: 11321
E24: z toho studenti učící se | G24: angličtinu | J24: 19447 | K24: 19195 | L24: 18533 | M24: 17879 | N24: 17329 | O24: 16430 | P24: 16332 | Q24: 17262 | R24: 17445 | S24: 17632 | T24: 17623 | U24: 17119 | V24: 15538 | W24: 13899 | X24: 12309 | Y24: 11047
G25: francouzštinu | J25: 1048 | K25: 1382 | L25: 978 | M25: 812 | N25: 680 | O25: 607 | P25: 572 | Q25: 528 | R25: 499 | S25: 432 | T25: 441 | U25: 391 | V25: 318 | W25: 285 | X25: 274 | Y25: 223
G26: němčinu | J26: 14764 | K26: 14053 | L26: 13488 | M26: 12690 | N26: 12345 | O26: 10869 | P26: 10035 | Q26: 9669 | R26: 8464 | S26: 7560 | T26: 6677 | U26: 5807 | V26: 4976 | W26: 3982 | X26: 3119 | Y26: 2487
G27: ruštinu | J27: 631 | K27: 838 | L27: 779 | M27: 740 | N27: 848 | O27: 929 | P27: 1054 | Q27: 1243 | R27: 1236 | S27: 1150 | T27: 1091 | U27: 1091 | V27: 1000 | W27: 784 | X27: 595 | Y27: 492
G28: španělštinu | J28: 1022 | K28: 1050 | L28: 920 | M28: 965 | N28: 938 | O28: 916 | P28: 718 | Q28: 706 | R28: 607 | S28: 639 | T28: 550 | U28: 602 | V28: 523 | W28: 455 | X28: 418 | Y28: 375
G29: italštinu | J29: 156 | K29: 219 | L29: 216 | M29: 206 | N29: 130 | O29: 86 | P29: 43 | Q29: 63 | R29: 80 | S29: 66 | T29: 110 | U29: 63 | V29: 80 | W29: 65 | X29: 29 | Y29: 37
G30: latinu | J30: 2566 | K30: 1686 | L30: 1615 | M30: 1659 | N30: 1331 | O30: 1707 | P30: 1655 | Q30: 1845 | R30: 1919 | S30: 1612 | T30: 1453 | U30: 1303 | V30: 1277 | W30: 896 | X30: 760 | Y30: 741
G31: klasickou řečtinu | J31: 0 | K31: 0 | L31: . | M31: . | N31: . | O31: . | P31: . | Q31: . | R31: . | S31: . | T31: . | U31: . | V31: . | W31: . | X31: 0 | Y31: 0
G32: jiný evropský jazyk | J32: 113 | K32: 115 | L32: 112 | M32: 53 | N32: 44 | O32: 51 | P32: 37 | Q32: 80 | R32: 41 | S32: 40 | T32: 23 | U32: 35 | V32: 26 | W32: 9 | X32: 15 | Y32: 8
G33: jiný cizí jazyk | J33: 78 | K33: 73 | L33: 83 | M33: 116 | N33: 131 | O33: 121 | P33: 86 | Q33: 106 | R33: 93 | S33: 28 | T33: 56 | U33: 70 | V33: 79 | W33: 54 | X33: 49 | Y33: 42
E34: Průměrný počet jazyků na studenta VOŠ | J34: 1.558708415 | K34: 1.542404027 | L34: 1.53779155 | M34: 1.547409235 | N34: 1.514958511 | O34: 1.527819259 | P34: 1.476330932 | Q34: 1.483564095 | R34: 1.465207118 | S34: 1.428872446 | T34: 1.409516145 | U34: 1.392271293 | V34: 1.390448946 | W34: 1.37328583 | X34: 1.361754903 | Y34: 1.34669688
E35: Průměrný počet jazyků na studenta učícího se cizí jazyk | J35: 1.561642224 | K35: 1.542404027 | L35: 1.53779155 | M35: 1.547750209 | N35: 1.521098852 | O35: 1.527819259 | P35: 1.48943851 | Q35: 1.491007194 | R35: 1.468677494 | S35: 1.433931645 | T35: 1.420087159 | U35: 1.402521053 | V35: 1.403476724 | W35: 1.389633358 | X35: 1.374540333 | Y35: 1.364897094
D36: Komentáře:
D37: 1) | E37: Každý student je započítán pouze jednou bez ohledu na to, kolika cizím jazykům se učí.

Sheet B9.3.1
D4: Tab. B9.3.1: | H4: Základní školy – učitelé cizích jazyků (přepočtení na plně zaměstnané)
B5: 0 | D5: ve školním roce 2007/08 až 2014/15 – podle jazyka
D7: Jazyk | J7: 20003/04 | L7: 2004/05 | N7: 2007/08 | P7: 2008/09 | R7: 2009/10 | T7: 2010/11 | V7: 2011/12 | X7: 2012/13 | Z7: 2013/14 | AB7: 2014/15
J11: počet | K11: z toho bez kvalifikace | L11: počet | M11: z toho bez kvalifikace | N11: počet | O11: z toho bez kvalifikace | P11: počet | Q11: z toho bez kvalifikace | R11: počet | S11: z toho bez kvalifikace | T11: počet | U11: z toho bez kvalifikace | V11: počet | W11: z toho bez kvalifikace | X11: počet | Y11: z toho bez kvalifikace | Z11: počet | AA11: z toho bez kvalifikace | AB11: počet | AC11: z toho bez kvalifikace
E12: Celkem | J12: . | K12: . | L12: . | M12: . | N12: 12103 | O12: 4074.5 | P12: 11828.1 | Q12: 3607 | R12: 11911.2 | S12: 3390.6 | T12: 11863.2 | U12: 3088.5 | V12: 11674.2 | W12: 3015.8 | X12: 11691.8 | Y12: 2608 | Z12: 11369 | AA12: 2265.1 | AB12: 8830.2 | AC12: 1461.8
E13: v tom | G13: anglický | J13: . | K13: . | L13: . | M13: . | N13: 9008 | O13: 3259 | P13: 8952.4 | Q13: 2977.9 | R13: 9130.9 | S13: 2833.3 | T13: 9165.3 | U13: 2575.6 | V13: 9144 | W13: 2568.2 | X13: 9223.6 | Y13: 2227.4 | Z13: 8704.2 | AA13: 1885.6 | AB13: 6796.5 | AC13: 1227.9
G14: francouzský | J14: . | K14: . | L14: . | M14: . | N14: 170.6 | O14: 28.4 | P14: 165 | Q14: 27 | R14: 151.4 | S14: 22.2 | T14: 155.7 | U14: 24.1 | V14: 142 | W14: 15.4 | X14: 138.5 | Y14: 12.2 | Z14: 136.3 | AA14: 12.2 | AB14: 92.5 | AC14: 7.8
G15: německý | J15: . | K15: . | L15: . | M15: . | N15: 2604 | O15: 757.8 | P15: 2318.2 | Q15: 581 | R15: 2150.7 | S15: 503.7 | T15: 2017.1 | U15: 444 | V15: 1860.7 | W15: 396.8 | X15: 1812.8 | Y15: 331.9 | Z15: 1865.4 | AA15: 314.8 | AB15: 1441.3 | AC15: 192.9
G16: ruský | J16: . | K16: . | L16: . | M16: . | N16: 289.8 | O16: 20.1 | P16: 358.2 | Q16: 14.3 | R16: 441.8 | S16: 20.1 | T16: 480.3 | U16: 33.5 | V16: 475.8 | W16: 22.3 | X16: 465.4 | Y16: 23.5 | Z16: 600.4 | AA16: 36.8 | AB16: 451 | AC16: 22.9
G17: španělský | J17: . | K17: . | L17: . | M17: . | N17: 25.5 | O17: 7.4 | P17: 26.7 | Q17: 5 | R17: 29.9 | S17: 9.2 | T17: 36.3 | U17: 10.6 | V17: 45.2 | W17: 12 | X17: 45.6 | Y17: 12.6 | Z17: 56 | AA17: 15.5 | AB17: 44.1 | AC17: 10.1
G18: italský | J18: . | K18: . | L18: . | M18: . | N18: 0.7 | O18: 0.5 | P18: 1.9 | Q18: 0.5 | R18: 1.6 | S18: 0.9 | T18: 4.1 | U18: 0.7 | V18: 2.3 | W18: 0.7 | X18: 1 | Y18: 0.3 | Z18: 2.3 | AA18: 0.1 | AB18: 1.4 | AC18: 0.1
G19: latinský | J19: . | K19: . | L19: . | M19: . | N19: 0 | O19: 0 | P19: 0 | Q19: 0 | R19: 1 | S19: 0 | T19: 0 | U19: 0 | V19: 0 | W19: 0 | X19: 0 | Y19: 0 | Z19: 0 | AA19: 0 | AB19: 0 | AC19: 0
G20: jiný evropský | J20: . | K20: . | L20: . | M20: . | N20: 1.3 | O20: 1.1 | P20: 1.2 | Q20: 1.2 | R20: 0.4 | S20: 0.1 | T20: 0.7 | U20: 0 | V20: 1.8 | W20: 0.4 | X20: 1.5 | Y20: 0.1 | Z20: 2.2 | AA20: 0.1 | AB20: 2.2 | AC20: 0.1
G21: jiný | J21: . | K21: . | L21: . | M21: . | N21: 3.1 | O21: 0.2 | P21: 4.5 | Q21: 0.1 | R21: 3.5 | S21: 1.1 | T21: 3.7 | U21: 0 | V21: 2.4 | W21: 0 | X21: 3.4 | Y21: 0 | Z21: 2.2 | AA21: 0 | AB21: 1.2 | AC21: 0
D22: Komentáře: | AC22: Zdroj: databáze MŠMT
E23: Údaje se od školního roku 2015/16 již nesledují.

Sheet B9.3.2
D4: Tab. B9.3.2: | H4: Střední školy – učitelé cizích jazyků (přepočtení na plně zaměstnané)
B5: 0 | D5: ve školním roce 2007/08 až 2014/15 – podle jazyka
D7: Jazyk | K7: 2004/05 | M7: 2007/08 | O7: 2008/09 | Q7: 2009/10 | S7: 2010/11 | U7: 2011/12 | W7: 2012/13 | Y7: 2013/14 | AA7: 2014/15
J11: z toho bez kvalifikace | K11: počet | L11: z toho bez kvalifikace | M11: počet | N11: z toho bez kvalifikace | O11: počet | P11: z toho bez kvalifikace | Q11: počet | R11: z toho bez kvalifikace | S11: počet | T11: z toho bez kvalifikace | U11: počet | V11: z toho bez kvalifikace | W11: počet | X11: z toho bez kvalifikace | Y11: počet | Z11: z toho bez kvalifikace | AA11: počet | AB11: z toho bez kvalifikace
E12: Celkem | J12: . | K12: . | L12: . | M12: 9893.5 | N12: 1538.7 | O12: 9725 | P12: 1476 | Q12: 9740.7 | R12: 1500.6 | S12: 9523.2 | T12: 1350.2 | U12: 9164.1 | V12: 1342.1 | W12: 8702.6 | X12: 1022.4 | Y12: 8090 | Z12: 857.1 | AA12: 7446.6 | AB12: 630
E13: v tom | G13: anglický | J13: . | K13: . | L13: . | M13: 4962.2 | N13: 1004.4 | O13: 5040.1 | P13: 993 | Q13: 5165.2 | R13: 1038 | S13: 5153.3 | T13: 952.4 | U13: 5062.8 | V13: 960.3 | W13: 4909.9 | X13: 741.3 | Y13: 4706.3 | Z13: 650.9 | AA13: 4501.1 | AB13: 484.6
G14: francouzský | J14: . | K14: . | L14: . | M14: 620.2 | N14: 33.6 | O14: 593 | P14: 42.4 | Q14: 588 | R14: 40.5 | S14: 572.2 | T14: 37.6 | U14: 525.4 | V14: 30.5 | W14: 485.1 | X14: 21.2 | Y14: 420.2 | Z14: 14.7 | AA14: 369.3 | AB14: 10.3
G15: německý | J15: . | K15: . | L15: . | M15: 3406 | N15: 446.4 | O15: 3192.9 | P15: 392 | Q15: 3061.8 | R15: 369.3 | S15: 2857.5 | T15: 303.5 | U15: 2644.6 | V15: 290.7 | W15: 2393.2 | X15: 204.4 | Y15: 2113.3 | Z15: 153.1 | AA15: 1861.6 | AB15: 89.8
G16: ruský | J16: . | K16: . | L16: . | M16: 437.1 | N16: 11.2 | O16: 439.1 | P16: 9.4 | Q16: 471.9 | R16: 11.6 | S16: 484.8 | T16: 13.6 | U16: 488.5 | V16: 10.1 | W16: 485.8 | X16: 9 | Y16: 454.1 | Z16: 6.7 | AA16: 370.4 | AB16: 8.3
G17: španělský | J17: . | K17: . | L17: . | M17: 261.1 | N17: 25.1 | O17: 283.8 | P17: 27 | Q17: 300.1 | R17: 29.1 | S17: 317.6 | T17: 33.6 | U17: 323 | V17: 44.1 | W17: 314.5 | X17: 34.2 | Y17: 299.4 | Z17: 28.8 | AA17: 276.9 | AB17: 33.7
G18: italský | J18: . | K18: . | L18: . | M18: 27.1 | N18: 1.5 | O18: 22.2 | P18: 0.5 | Q18: 25 | R18: 2.7 | S18: 21.6 | T18: 1.6 | U18: 16.7 | V18: 1.1 | W18: 13.9 | X18: 0.9 | Y18: 11.5 | Z18: 0.1 | AA18: 9 | AB18: 0.1
G19: latinský | J19: . | K19: . | L19: . | M19: 158.3 | N19: 14.1 | O19: 141.3 | P19: 9.7 | Q19: 121.4 | R19: 7.3 | S19: 105.7 | T19: 5.5 | U19: 96.3 | V19: 3.9 | W19: 83.7 | X19: 5.1 | Y19: 80.1 | Z19: 1.2 | AA19: 54.4 | AB19: 2.6
G20: jiný evropský | J20: . | K20: . | L20: . | M20: 4 | N20: 1 | O20: 2.5 | P20: 0 | Q20: 1 | R20: 0 | S20: 4 | T20: 0 | U20: 3 | V20: 0 | W20: 2 | X20: 0 | Y20: 1 | Z20: 0.3 | AA20: 0.2 | AB20: 0.1
G21: jiný | J21: . | K21: . | L21: . | M21: 17.5 | N21: 1.4 | O21: 10.1 | P21: 2 | Q21: 6.3 | R21: 2.1 | S21: 6.5 | T21: 2.4 | U21: 3.8 | V21: 1.4 | W21: 14.5 | X21: 6.3 | Y21: 4.1 | Z21: 1.3 | AA21: 3.7 | AB21: 0.5
D22: Komentáře: | AB22: Zdroj: databáze MŠMT
E23: Údaje se od školního roku 2015/16 již nesledují.

Sheet B9.3.3
D4: Tab. B9.3.3: | H4: Konzervatoře – učitelé cizích jazyků (přepočtení na plně zaměstnané)
B5: 0 | D5: ve školním roce 2007/08 až 2014/15 – podle jazyka
D7: Jazyk | J7: 20003/04 | L7: 2004/05 | N7: 2007/08 | P7: 2008/09 | R7: 2009/10 | T7: 2010/11 | V7: 2011/12 | X7: 2012/13 | Z7: 2013/14 | AB7: 2014/15
J11: počet | K11: z toho bez kvalifikace | L11: počet | M11: z toho bez kvalifikace | N11: počet | O11: z toho bez kvalifikace | P11: počet | Q11: z toho bez kvalifikace | R11: počet | S11: z toho bez kvalifikace | T11: počet | U11: z toho bez kvalifikace | V11: počet | W11: z toho bez kvalifikace | X11: počet | Y11: z toho bez kvalifikace | Z11: počet | AA11: z toho bez kvalifikace | AB11: počet | AC11: z toho bez kvalifikace
E12: Celkem | J12: . | K12: . | L12: . | M12: . | N12: 47.9 | O12: 1.8 | P12: 49.9 | Q12: 2.4 | R12: 46.1 | S12: 2.9 | T12: 51.4 | U12: 2.1 | V12: 48.6 | W12: 3.7 | X12: 49.6 | Y12: 2.3 | Z12: 49.6 | AA12: 5.1 | AB12: 50.3 | AC12: 3.4
E13: v tom | G13: anglický | J13: . | K13: . | L13: . | M13: . | N13: 29.3 | O13: 1.1 | P13: 30.4 | Q13: 1.5 | R13: 29.8 | S13: 1.4 | T13: 34 | U13: 1 | V13: 31.9 | W13: 2.7 | X13: 31.9 | Y13: 1.1 | Z13: 33 | AA13: 3.1 | AB13: 31.5 | AC13: 2.1
G14: francouzský | J14: . | K14: . | L14: . | M14: . | N14: 4.3 | O14: 0 | P14: 4.3 | Q14: 0 | R14: 4 | S14: 0 | T14: 4 | U14: 0 | V14: 3.7 | W14: 0 | X14: 3.2 | Y14: 0 | Z14: 4.2 | AA14: 0 | AB14: 4.7 | AC14: 0
G15: německý | J15: . | K15: . | L15: . | M15: . | N15: 8.2 | O15: 0.7 | P15: 9.8 | Q15: 0.9 | R15: 7.3 | S15: 1.2 | T15: 7.1 | U15: 0.9 | V15: 6 | W15: 0.8 | X15: 7.7 | Y15: 0.6 | Z15: 6.3 | AA15: 0.8 | AB15: 7.5 | AC15: 0.7
G16: ruský | J16: . | K16: . | L16: . | M16: . | N16: 0 | O16: 0 | P16: 0 | Q16: 0 | R16: 0 | S16: 0 | T16: 0 | U16: 0 | V16: 0 | W16: 0 | X16: 0 | Y16: 0 | Z16: 0 | AA16: 0 | AB16: 0 | AC16: 0
G17: španělský | J17: . | K17: . | L17: . | M17: . | N17: 2 | O17: 0 | P17: 0.8 | Q17: 0 | R17: 0.8 | S17: 0 | T17: 0.6 | U17: 0 | V17: 0.6 | W17: 0 | X17: 0.7 | Y17: 0 | Z17: 0.7 | AA17: 0 | AB17: 0.6 | AC17: 0
G18: italský | J18: . | K18: . | L18: . | M18: . | N18: 3.8 | O18: 0 | P18: 4.3 | Q18: 0 | R18: 3.9 | S18: 0.3 | T18: 5.4 | U18: 0.2 | V18: 5.3 | W18: 0.2 | X18: 5.8 | Y18: 0.6 | Z18: 5.3 | AA18: 1.2 | AB18: 5.6 | AC18: 0.4
G19: latinský | J19: . | K19: . | L19: . | M19: . | N19: 0.3 | O19: 0 | P19: 0.3 | Q19: 0 | R19: 0.3 | S19: 0 | T19: 0.3 | U19: 0 | V19: 1.1 | W19: 0 | X19: 0.3 | Y19: 0 | Z19: 0.1 | AA19: 0 | AB19: 0.4 | AC19: 0.2
G20: jiný evropský | J20: . | K20: . | L20: . | M20: . | N20: 0 | O20: 0 | P20: 0 | Q20: 0 | R20: 0 | S20: 0 | T20: 0 | U20: 0 | V20: 0 | W20: 0 | X20: 0 | Y20: 0 | Z20: 0 | AA20: 0 | AB20: 0 | AC20: 0
G21: jiný | J21: . | K21: . | L21: . | M21: . | N21: 0 | O21: 0 | P21: 0 | Q21: 0 | R21: 0 | S21: 0 | T21: 0 | U21: 0 | V21: 0 | W21: 0 | X21: 0 | Y21: 0 | Z21: 0 | AA21: 0 | AB21: 0 | AC21: 0
D22: Komentáře: | AC22: Zdroj: databáze MŠMT
E23: Údaje se od školního roku 2015/16 již nesledují.

Sheet B9.3.4
D4: Tab. B9.3.4: | H4: Vyšší odborné školy – učitelé cizích jazyků (přepočtení na plně zaměstnané)
B5: 0 | D5: ve školním roce 2007/08 až 2014/15 – podle jazyka
D7: Jazyk | J7: 20003/04 | L7: 2004/05 | N7: 2007/08 | P7: 2008/09 | R7: 2009/10 | T7: 2010/11 | V7: 2011/12 | X7: 2012/13 | Z7: 2013/14 | AB7: 2014/15
J11: počet | K11: z toho bez kvalifikace | L11: počet | M11: z toho bez kvalifikace | N11: počet | O11: z toho bez kvalifikace | P11: počet | Q11: z toho bez kvalifikace | R11: počet | S11: z toho bez kvalifikace | T11: počet | U11: z toho bez kvalifikace | V11: počet | W11: z toho bez kvalifikace | X11: počet | Y11: z toho bez kvalifikace | Z11: počet | AA11: z toho bez kvalifikace | AB11: počet | AC11: z toho bez kvalifikace
E12: Celkem | J12: . | K12: . | L12: . | M12: . | N12: 512.7 | O12: 34.5 | P12: 468.1 | Q12: 25.1 | R12: 442.2 | S12: 27.8 | T12: 412.7 | U12: 26.2 | V12: 429.9 | W12: 32.2 | X12: 404.2 | Y12: 27.3 | Z12: 383.4 | AA12: 22 | AB12: 360.4 | AC12: 9.3
E13: v tom | G13: anglický | J13: . | K13: . | L13: . | M13: . | N13: 251.6 | O13: 18 | P13: 232.7 | Q13: 15.7 | R13: 226.1 | S13: 19 | T13: 216.1 | U13: 18.4 | V13: 234.6 | W13: 19 | X13: 217.6 | Y13: 16.7 | Z13: 216.7 | AA13: 15.8 | AB13: 210.1 | AC13: 8.2
G14: francouzský | J14: . | K14: . | L14: . | M14: . | N14: 18.4 | O14: 1.1 | P14: 14.3 | Q14: 0.2 | R14: 13.7 | S14: 0.4 | T14: 9.8 | U14: 0.1 | V14: 7.2 | W14: 0.1 | X14: 9.1 | Y14: 0 | Z14: 7.9 | AA14: 0 | AB14: 7.5 | AC14: 0
G15: německý | J15: . | K15: . | L15: . | M15: . | N15: 174.7 | O15: 10.1 | P15: 162 | Q15: 3.9 | R15: 149.8 | S15: 5.1 | T15: 136.8 | U15: 4.2 | V15: 138 | W15: 9 | X15: 125.5 | Y15: 6.3 | Z15: 110.5 | AA15: 3.3 | AB15: 102 | AC15: 0.7
G16: ruský | J16: . | K16: . | L16: . | M16: . | N16: 27.4 | O16: 2.1 | P16: 31.9 | Q16: 2.6 | R16: 27.6 | S16: 1.7 | T16: 26.5 | U16: 1.8 | V16: 29.2 | W16: 1.9 | X16: 28.8 | Y16: 2.4 | Z16: 23.4 | AA16: 1.4 | AB16: 19.9 | AC16: 0.3
G17: španělský | J17: . | K17: . | L17: . | M17: . | N17: 17.3 | O17: 3.1 | P17: 14 | Q17: 2 | R17: 11.3 | S17: 1.3 | T17: 8.4 | U17: 1.5 | V17: 8.5 | W17: 1.6 | X17: 8.9 | Y17: 1.8 | Z17: 6.9 | AA17: 1.5 | AB17: 6.5 | AC17: 0
G18: italský | J18: . | K18: . | L18: . | M18: . | N18: 3.1 | O18: 0 | P18: 1.9 | Q18: 0 | R18: 1.6 | S18: 0 | T18: 1.4 | U18: 0 | V18: 1.2 | W18: 0 | X18: 1.3 | Y18: 0 | Z18: 1.9 | AA18: 0 | AB18: 1.8 | AC18: 0
G19: latinský | J19: . | K19: . | L19: . | M19: . | N19: 15 | O19: 0.1 | P19: 9 | Q19: 0.7 | R19: 9 | S19: 0.3 | T19: 11 | U19: 0.2 | V19: 8.6 | W19: 0.5 | X19: 10.8 | Y19: 0.1 | Z19: 10.6 | AA19: 0 | AB19: 9.5 | AC19: 0.1
G20: jiný evropský | J20: . | K20: . | L20: . | M20: . | N20: 1.8 | O20: 0 | P20: 1 | Q20: 0 | R20: 0.8 | S20: 0 | T20: 0.6 | U20: 0 | V20: 0.7 | W20: 0 | X20: 0.9 | Y20: 0 | Z20: 3.6 | AA20: 0 | AB20: 1.2 | AC20: 0
G21: jiný | J21: . | K21: . | L21: . | M21: . | N21: 3.4 | O21: 0 | P21: 1.3 | Q21: 0 | R21: 2.3 | S21: 0 | T21: 2.1 | U21: 0 | V21: 1.9 | W21: 0.1 | X21: 1.3 | Y21: 0 | Z21: 1.9 | AA21: 0 | AB21: 1.9 | AC21: 0
D22: Komentáře: | AC22: Zdroj: databáze MŠMT
E23: Údaje se od školního roku 2015/16 již nesledují.

Sheet GB1
D4: Obr. B1: | G4: Zdravotně postižené děti – podíl na celkovém počtu dětí v mateřských školách ve školním roce 2008/09 až 2018/19
B5: 0
J9: 2003/04 | K9: 2004/05 | L9: 2005/06 | M9: 2006/07 | N9: 2007/08 | O9: 2008/09 | P9: 2009/10 | Q9: 2010/11 | R9: 2011/12 | S9: 2012/13 | T9: 2013/14 | U9: 2014/15 | V9: 2015/16 | W9: 2016/17 | X9: 2017/18 | Y9: 2018/19
D10: počet individuálně integrovaných dětí do běžných tříd MŠ | J10: 2001 | K10: 1919 | L10: 1557 | M10: 1591 | N10: 1683 | O10: 1693 | P10: 1780 | Q10: 1911 | R10: 2032 | S10: 2156 | T10: 2299 | U10: 2484 | V10: 2748 | W10: 3029 | X10: 3774 | Y10: 4367
D11: počet dětí ve speciálních třídách MŠ | J11: 7877 | K11: 7575 | L11: 6712 | M11: 6864 | N11: 6837 | O11: 6980 | P11: 7190 | Q11: 7325 | R11: 7478 | S11: 7611 | T11: 7764 | U11: 7828 | V11: 7788 | W11: 7457 | X11: 7014 | Y11: 6878
D12: podíl zdravotně postižených dětí na celkovém počtu dětí v MŠ | J12: 0.03449745058 | K12: 0.03316912972 | L12: 0.02930367882 | M12: 0.02962311549 | N12: 0.02925884462 | O12: 0.02875472449 | P12: 0.02856615118 | Q12: 0.02810609473 | R12: 0.027764721 | S12: 0.02756392166 | T12: 0.02767845355 | U12: 0.02805200175 | V12: 0.02868023552 | W12: 0.02891469256 | X12: 0.02973899811 | Y12: 0.03091187984
G13: počet dětí v MŠ | O13: 301620 | P13: 314008 | Q13: 328612 | R13: 342521 | S13: 354340 | T13: 363568 | U13: 367603 | V13: 367361 | W13: 362653 | X13: 362756 | Y13: 363776
Y34: Zdroj: databáze MŠMT

Sheet GB2
D4: Obr. B2: | G4: Zdravotně postižení žáci – podíl na celkovém počtu žáků v základních školách ve školním roce
B5: 0 | D5: 2008/09 až 2018/19
J10: 2003/04 | K10: 2004/05 | L10: 2005/06 | M10: 2006/07 | N10: 2007/08 | O10: 2008/09 | P10: 2009/10 | Q10: 2010/11 | R10: 2011/12 | S10: 2012/13 | T10: 2013/14 | U10: 2014/15 | V10: 2015/16 | W10: 2016/17 | X10: 2017/18 | Y10: 2018/19
D11: počet individuálně integrovaných žáků do běžných tříd ZŠ | J11: 53550 | K11: 51587 | L11: 45556 | M11: 39982 | N11: 36085 | O11: 34350 | P11: 34761 | Q11: 36226 | R11: 39160 | S11: 40888 | T11: 43352 | U11: 45853 | V11: 49225 | W11: 53206 | X11: 68419 | Y11: 76037
D12: počet žáků ve speciálních třídách ZŠ | J12: 46268 | K12: 45006 | L12: 43971 | M12: 42098 | N12: 40209 | O12: 38504 | P12: 37040 | Q12: 34497 | R12: 32631 | S12: 31222 | T12: 30277 | U12: 29995 | V12: 29492 | W12: 28438 | X12: 27212 | Y12: 25946
D13: podíl zdravotně postižených žáků na celkovém počtu žáků v ZŠ | J13: 0.09994482999 | K13: 0.1007373339 | L13: 0.09767558574 | M13: 0.09364379079 | N13: 0.0903033983 | O13: 0.08928022156 | P13: 0.09037722526 | Q13: 0.0895810692 | R13: 0.09034382779 | S13: 0.08925057244 | T13: 0.0889610876 | U13: 0.08880074274 | V13: 0.08942562974 | W13: 0.09009609485 | X13: 0.1032611747 | Y13: 0.1083855513
F14: počet žáků ZŠ | O14: 816015 | P14: 794459 | Q14: 789486 | R14: 794642 | S14: 807950 | T14: 827654 | U14: 854137 | V14: 880251 | W14: 906188 | X14: 926108 | Y14: 940928
Y32: Zdroj: databáze MŠMT

Sheet GB3
D4: Obr. B3: | G4: Zdravotně postižení žáci – podíl na celkovém počtu žáků ve středních školách denní formy
B5: 0 | D5: vzdělávání ve školním roce 2008/09 až 2018/19
J10: 2003/04 | K10: 2004/05 | L10: 2005/06 | M10: 2006/07 | N10: 2007/08 | O10: 2008/09 | P10: 2009/10 | Q10: 2010/11 | R10: 2011/12 | S10: 2012/13 | T10: 2013/14 | U10: 2014/15 | V10: 2015/16 | W10: 2016/17 | X10: 2017/18 | Y10: 2018/19
D11: počet individuálně integrovaných žáků do běžných tříd SŠ | J11: 4003 | K11: 4509 | L11: 4436 | M11: 4502 | N11: 4729 | O11: 5158 | P11: 6284 | Q11: 6532 | R11: 7295 | S11: 7807 | T11: 8872 | U11: 8982 | V11: 9505 | W11: 10482 | X11: 12985 | Y11: 14203
D12: počet žáků ve speciálních třídách SŠ | J12: 16407 | K12: 16340 | L12: 16463 | M12: 16239 | N12: 14638 | O12: 13540 | P12: 13444 | Q12: 12199 | R12: 11830 | S12: 11353 | T12: 11004 | U12: 10853 | V12: 10541 | W12: 9853 | X12: 9331 | Y12: 7864
D13: podíl zdravotně postižených žáků na celkovém počtu žáků v SŠ v denní formě vzdělávání | J13: 0.03759183846 | K13: 0.03835448603 | L13: 0.03855711985 | M13: 0.03828377356 | N13: 0.03627186575 | O13: 0.03547704655 | P13: 0.03797731525 | Q13: 0.03769070721 | R13: 0.04066146909 | S13: 0.04318048134 | T13: 0.04689251008 | U13: 0.04808111856 | V13: 0.04941929981 | W13: 0.05032332146 | X13: 0.05537221663 | Y13: 0.0546271014
E14: POČET ŽÁKŮ | O14: 527045 | P14: 519468 | Q14: 496966 | R14: 470347 | S14: 443719 | T14: 423863 | U14: 412532 | V14: 405631 | W14: 404087 | X14: 403018 | Y14: 403957
E15: DENNÍ FORMA
O16: =(O11+O12)/O14 -> 0.03547704655 | P16: =(P11+P12)/P14 -> 0.03797731525 | Q16: 0.03769070721 | R16: 0.04066146909 | S16: 0.04318048134 | T16: 0.04689251008 | U16: 0.04808111856 | V16: 0.04941929981 | W16: 0.05032332146 | X16: 0.05537221663 | Y16: 0.0546271014
Y31: Zdroj: databáze MŠMT

Sheet GB4
D4: Obr. B4: | G4: Základní školy – žáci učící se cizí jazyky ve školním roce 2008/09 až 2018/19
B5: 0
J10: 2003/04 | K10: 2004/05 | L10: 2005/06 | M10: 2006/07 | N10: 2007/08 | O10: 2008/09 | P10: 2009/10 | Q10: 2010/11 | R10: 2011/12 | S10: 2012/13 | T10: 2013/14 | U10: 2014/15 | V10: 2015/16 | W10: 2016/17 | X10: 2017/18 | Y10: 2018/19
I11: anglický jazyk | J11: 492927 | K11: 497635 | L11: 503215 | M11: 577936 | N11: 599208 | O11: 616632 | P11: 618147 | Q11: 628678 | R11: 635169 | S11: 652632 | T11: 674514 | U11: 698322 | V11: 725896 | W11: 760106 | X11: 785767 | Y11: 808179
I12: německý jazyk | J12: 218268 | K12: 187484 | L12: 166808 | M12: 148187 | N12: 127902 | O12: 117721 | P12: 111196 | Q12: 113849 | R12: 106761 | S12: 106364 | T12: 140285 | U12: 158575 | V12: 163102 | W12: 169330 | X12: 176504 | Y12: 186080
I13: francouzský jazyk | J13: 7093 | K13: 9079 | L13: 7250 | M13: 7303 | N13: 7376 | O13: 7369 | P13: 6897 | Q13: 7428 | R13: 7180 | S13: 6319 | T13: 6583 | U13: 7181 | V13: 6862 | W13: 6416 | X13: 6145 | Y13: 6631
I14: ruský jazyk | J14: 2896 | K14: 3968 | L14: 5657 | M14: 7342 | N14: 9084 | O14: 13763 | P14: 19378 | Q14: 24955 | R14: 25512 | S14: 26194 | T14: 41538 | U14: 51689 | V14: 50943 | W14: 52000 | X14: 52002 | Y14: 54498
D15: průměrný počet jazyků na počet žáků učících se cizí jazyk | J15: 1.038038065 | K15: 1.039361011 | L15: 1.068110406 | M15: 1.083753043 | N15: 1.0986461 | O15: 1.125319495 | P15: 1.152438097 | Q15: 1.191572314 | R15: 1.205387247 | S15: 1.202301029 | T15: 1.273415963 | U15: 1.308700841 | V15: 1.302325645 | W15: 1.298666858 | X15: 1.299258203 | Y15: 1.307975656
Y33: Zdroj: databáze MŠMT

Sheet GB5
D4: Obr. B5: | G4: Střední školy, denní forma vzdělávání – žáci učící se cizí jazyky ve školním roce 2008/09 až 2018/19
B5: 0
J10: 2003/04 | K10: 2004/05 | L10: 2005/06 | M10: 2006/07 | N10: 2007/08 | O10: 2008/09 | P10: 2009/10 | Q10: 2010/11 | R10: 2011/12 | S10: 2012/13 | T10: 2013/14 | U10: 2014/15 | V10: 2015/16 | W10: 2016/17 | X10: 2017/18 | Y10: 2018/19
I11: anglický jazyk | J11: 373929 | K11: 386369 | L11: 399507 | M11: 413621 | N11: 421366 | O11: 430434 | P11: 436720 | Q11: 430788 | R11: 418369 | S11: 403518 | T11: 392641 | U11: 386945 | V11: 381614 | W11: 382012 | X11: 381899 | Y11: 384252
I12: německý jazyk | J12: 307596 | K12: 298154 | L12: 287903 | M12: 276823 | N12: 261192 | O12: 246404 | P12: 237938 | Q12: 224396 | R12: 207169 | S12: 185690 | T12: 169033 | U12: 160891 | V12: 158311 | W12: 160101 | X12: 160940 | Y12: 161244
I13: francouzský jazyk | J13: 33383 | K13: 38455 | L13: 40370 | M13: 42977 | N13: 43418 | O13: 43797 | P13: 41878 | Q13: 38438 | R13: 34532 | S13: 30422 | T13: 27224 | U13: 24916 | V13: 22967 | W13: 21625 | X13: 20148 | Y13: 18921
I14: ruský jazyk | J14: 11334 | K14: 12683 | L14: 14904 | M14: 17297 | N14: 19772 | O14: 21867 | P14: 26688 | Q14: 29181 | R14: 29836 | S14: 29468 | T14: 29316 | U14: 30338 | V14: 30736 | W14: 30924 | X14: 31334 | Y14: 29996
D15: průměrný počet jazyků na počet žáků učících se cizí jazyk | J15: 1.459235849 | K15: 1.465106059 | L15: 1.478374432 | M15: 1.495466798 | N15: 1.515776541 | O15: 1.533546477 | P15: 1.561376429 | Q15: 1.579171028 | R15: 1.593251967 | S15: 1.586985855 | T15: 1.582908871 | U15: 1.585276224 | V15: 1.590168486 | W15: 1.597517794 | X15: 1.601694329 | Y15: 1.597722641
Y33: Zdroj: databáze MŠMT

Sheet GB6
D4: Obr. B6: | G4: VOŠ, denní forma vzdělávání – studenti učící se cizí jazyky ve školním roce 2008/09 až 2018/19
B5: 0
J10: 2003/04 | K10: 2004/05 | L10: 2005/06 | M10: 2006/07 | N10: 2007/08 | O10: 2008/09 | P10: 2009/10 | Q10: 2010/11 | R10: 2011/12 | S10: 2012/13 | T10: 2013/14 | U10: 2014/15 | V10: 2015/16 | W10: 2016/17 | X10: 2017/18 | Y10: 2018/19
I11: anglický jazyk | J11: 19447 | K11: 19195 | L11: 18533 | M11: 17879 | N11: 17329 | O11: 16430 | P11: 16332 | Q11: 17262 | R11: 17445 | S11: 17632 | T11: 17623 | U11: 17119 | V11: 15538 | W11: 13899 | X11: 12309 | Y11: 11047
I12: německý jazyk | J12: 14764 | K12: 14053 | L12: 13488 | M12: 12690 | N12: 12345 | O12: 10869 | P12: 10035 | Q12: 9669 | R12: 8464 | S12: 7560 | T12: 6677 | U12: 5807 | V12: 4976 | W12: 3982 | X12: 3119 | Y12: 2487
I13: francouzský jazyk | J13: 631 | K13: 838 | L13: 779 | M13: 740 | N13: 848 | O13: 607 | P13: 572 | Q13: 528 | R13: 499 | S13: 432 | T13: 441 | U13: 391 | V13: 318 | W13: 285 | X13: 274 | Y13: 223
I14: ruský jazyk | J14: 1022 | K14: 1050 | L14: 920 | M14: 965 | N14: 938 | O14: 929 | P14: 1054 | Q14: 1243 | R14: 1236 | S14: 1150 | T14: 1091 | U14: 1091 | V14: 1000 | W14: 784 | X14: 595 | Y14: 492
D15: průměrný počet jazyků na počet studentů učících se cizí jazyk | J15: 1.561642224 | K15: 1.542404027 | L15: 1.53779155 | M15: 1.547750209 | N15: 1.521098852 | O15: 1.527819259 | P15: 1.48943851 | Q15: 1.491007194 | R15: 1.468677494 | S15: 1.433931645 | T15: 1.420087159 | U15: 1.402521053 | V15: 1.403476724 | W15: 1.389633358 | X15: 1.374540333 | Y15: 1.364897094
Y34: Zdroj: databáze MŠMT
